Workbook

Sheet ReadMe
B2: DDA Residential Programs Cost Report General Guidelines
B4: 1. For 2018, Schedule B-1 and Schedule E will continue to include a section to record the 1163 employee training hours not being settled from January 1, 2018 to December 31, 2018 so that the hours and related expense can be deducted from settlement. Intructions for tracking and reporting 1163 training was sent to providers earlier this year. The department has also decided to extend the Consideration of Overtime Credit for 2018, however the way the credit is calculated on Schedule J Summary is slightly different. A decription and sample of these changes were sent to providers in late October.
B6: 2. The completed cost report must be submitted in excel format using the 12/18 revised cost report template. The cost report (Schedules A, B-1, B, C, E, F, G, H, L, M, N, O & P), settlement (Schedules J Summary, J Detail, & J Detail pg 2 - COCA) are all on a single file. The completed report is to be emailed to both your resource manager and rate analyst (see below for rate analyst). The department no longer accepts Cost Report templates and survey templates from previous years. The current year cost report templates and related materials are available on the web. In addition, cost reports received in PDF or by mail cannot be accepted; only the signed Schedule A is to be scanned as PDF and attached to the email submitting the cost report. If scanning Schedule A is not possible, the signed form (Schedule A only) may be mailed or faxed to your regional resource manager. The resource manager will forward the signed Schedule A to the rates department if mailed or faxed.
B8: 3. Providers are to fill in cells that are formatted white. Cells that are formatted in yellow are locked and cannot be changed. Several places throughout the cost report, providers will select from a drop down list instead of typing in their information. Do not copy and paste while using this form.
B10: 4. Do not include client names, identification numbers, or employee information in the cost report. If you use the optional form, Schedule J Detail by Client, do not submit it with your cost report. This form, once complete, will list client names and identification numbers. The form is a separate file from the cost report template and providers have the option of using it to complete their cost report. Providers that choose to use this optional form will need to enter the necessary information throughout the year using their Exhibit C's and COCA's. Schedule B-2 is a also a separate template file and is an internal use only document. This file will not be submitted with the cost report however it must be made available to the department if requested. An agency may use their internal payroll records provided that the reports breakdown the data exactly how it is displayed on Schedule B-2 for auditing purposes.
B12: 5. Review the report before submitting to ensure all required information is both accurate and complete. It is also recommended to print preview before printing as some printers allow different margins or use slightly different font sizes that may cause schedules to not fit as they were designed.
B14: 6. It is recommended that the cost report preparer refer to the cost reporting instructions, DDA policy 6.04, the Chart of Accounts, PowerPoint Presentation and template samples while completing their cost report.
B16: 7. On Schedule A, please include your current contact information for your agency and the cost report preparer, including email addresses.
B18: 8. Each schedule (A through P) is on a separate tab. Move from schedule to schedule by clicking on the appropriate tab. If additional tabs are needed (Schedule F or Schedule O) please contact your rates analyst.
B20: 9. There are several places throughout the schedules where you will find a small red triangle in the upper right corner of a cell. As you pass the mouse cursor over the triangle, an explanation of the information required or relative information for that cell will appear in a comment box.
B22: 10. If you have any trouble or have questions about using the spreadsheet, or if you find any errors in logic, line or column references or anything else that requires attention, please feel free to contact any of the individuals listed below.
B24: IMPORTANT DATES
B25: Extension Requests must be received by March 15 March 31 - Cost Reports Due | C25: April 30 - Extended Due Date
B27: DD Rates Contact Information | C27: Telephone | D27: E-mail address
B28: Lynda O'Neil, DDA Rates Manager | C28: (360) 725-2473 | D28: lynda.oneil@dshs.wa.gov
B29: Carson Crepeaux, DDA Rates Program Manager | C29: (360) 725-2476 | D29: crepecn@dshs.wa.gov
B30: Tod Johnson, Analyst - Regions 1 & SOLA | C30: (360) 725-2347 | D30: johnstp1@dshs.wa.gov
B31: Samantha (Sam) Everett, Analyst - LSR & Regions 2 & 3 | C31: (360) 725-2441 | D31: samantha.everett@dshs.wa.gov
B32: Tammy Paulk, Analyst - ICF/ID & RHC | C32: (360) 725-2498 | D32: tammy.paulk@dshs.wa.gov

Sheet RES (hidden)
B1: FILE NAME: | C1: =MID(CELL("filename",A1),FIND("[",CELL("filename",A1))+1,FIND(".",CELL("filename",A1),FIND("[",CELL("filename",A1))+1)-FIND("[",CELL("filename",A1))-1) -> 2018 Cost Report - Template
B2: PROVIDER NAME: | C2: =_M000001 -> 0
B3: REGION: | C3: =_M000009 -> 
B4: CITY, ZIP: | C4: =_M000005 -> 0
B5: MEDICAL SVS: | C5: =_M000025 -> 0
B6: BUSINESS TYPE: | C6: =B!D13 -> 0
B7: ACCTNG BASIS: | C7: =B!D17 -> 0
B8: PROVIDER NAME | C8: TOTAL SETTLED PROGRAMS | D8: TOTAL ALL PROGRAMS | E8: =IF(_M001567="","",_M001567) ->  | F8: =IF(_M001568="","",_M001568) ->  | G8: =IF(_M001569="","",_M001569) ->  | H8: =IF(_M001570="","",_M001570) ->  | I8: =IF(_M001571="","",_M001571) -> SSP | J8: =IF(_M001572="","",_M001572) -> OTHER | K8: =IF(_M001573="","",_M001573) -> OTHER
B9: P1 ID NUMBER | E9: =IF(_C000108=0,"",_C000108) ->  | F9: =IF(_C000109=0,"",_C000109) ->  | G9: =IF(_C000110=0,"",_C000110) ->  | H9: =IF(_C000111=0,"",_C000111) ->  | I9: =IF(_C000112=0,"",_C000112) ->  | J9: =IF(_C000113=0,"",_C000113) ->  | K9: =IF(_C000114=0,"",_C000114) -> 
B10: PROGRAM TYPE SL/GH | E10: =IF(_M000101=0,"",_M000101) ->  | F10: =IF(_M000102=0,"",_M000102) ->  | G10: =IF(_M000103=0,"",_M000103) ->  | H10: =IF(_M000104=0,"",_M000104) ->  | I10: =IF(_M000105=0,"",_M000105) -> SSP | J10: =IF(_M000106=0,"",_M000106) -> OTHER | K10: =IF(_M000107=0,"",_M000107) -> OTHER
B11: ISS STAFF & PROF SVS STAFF REG & OT HOURS WORKED | C11: =SUM(E11:H11) -> 0 | D11: =SUM(E11:K11) -> 0 | E11: =_C000042 -> 0 | F11: =_C000050 -> 0 | G11: =_C000058 -> 0 | H11: =_C000066 -> 0 | I11: =_C000074 -> 0 | J11: =_C000082 -> 0 | K11: =_C000090 -> 0
B12: SLEEP &/OR CALL BACK HOURS | C12: =SUM(E12:H12) -> 0 | D12: =SUM(E12:K12) -> 0 | E12: =_C000043 -> 0 | F12: =_C000051 -> 0 | G12: =_C000059 -> 0 | H12: =_C000067 -> 0 | I12: =_C000075 -> 0 | J12: =_C000083 -> 0 | K12: =_C000091 -> 0
B13: ADMINISTRATOR ISS HOURS WORKED & AUTHORIZED PURCHASED PROF SVS | C13: =SUM(E13:H13) -> 0 | D13: =SUM(E13:K13) -> 0 | E13: =_C000044 -> 0 | F13: =_C000052 -> 0 | G13: =_C000060 -> 0 | H13: =_C000068 -> 0 | I13: =_C000076 -> 0 | J13: =_C000084 -> 0 | K13: =_C000092 -> 0
B14: TOTAL ISS PAID HOURS WORKED | C14: =SUM(E14:H14) -> 0 | D14: =SUM(E14:K14) -> 0 | E14: =_C000045 -> 0 | F14: =_C000053 -> 0 | G14: =_C000061 -> 0 | H14: =_C000069 -> 0 | I14: =_C000077 -> 0 | J14: =_C000085 -> 0 | K14: =_C000093 -> 0
B15: ANNUAL RESIDENT DAYS | C15: =SUM(E15:H15) -> 0 | D15: =SUM(E15:K15) -> 0 | E15: =_C000046 -> 0 | F15: =_C000054 -> 0 | G15: =_C000062 -> 0 | H15: =_C000070 -> 0 | I15: =_C000078 -> 0 | J15: =_C000086 -> 0 | K15: =_C000094 -> 0
B16: AVERAGE HOURS PER RESIDENT DAY | C16: =C14/C15 ->  | D16: =_C001786/_C001792 ->  | E16: =IF(_C001787=0,0,IF(_C001793=0,0,ROUND(_C001787/_C001793,2))) -> 0 | F16: =IF(_C001788=0,0,IF(_C001794=0,0,ROUND(_C001788/_C001794,2))) -> 0 | G16: =IF(_C001789=0,0,IF(_C001795=0,0,ROUND(_C001789/_C001795,2))) -> 0 | H16: =IF(_C001790=0,0,IF(_C001796=0,0,ROUND(_C001790/_C001796,2))) -> 0 | I16: =IF(_C001791=0,0,IF(_C001797=0,0,ROUND(_C001791/_C001797,2))) -> 0 | J16: =IF(J14=0,0,IF(J15=0,0,ROUND(J14/J15,2))) -> 0 | K16: =IF(K14=0,0,IF(K15=0,0,ROUND(K14/K15,2))) -> 0
A17: 1 | B17: TOTAL ISS PAID HOURS WORKED | C17: =SUM(E17:H17) -> 0 | D17: =SUM(E17:K17) -> 0 | E17: =+E14 -> 0 | F17: 0 | G17: 0 | H17: 0 | I17: 0 | J17: 0 | K17: 0
A18: 2 | B18: % OF PAID HOURS WORKED | C18: =SUM(E18:H18) ->  | D18: =SUM(E18:K18) ->  | E18: =+E17/$D17 -> 
A19: 3 | B19: ADMIN. & OTHER NON ISS STAFF HOURS | C19: ALLOCATED | E19: SCHEDULE C | F19: SCHEDULE C | G19: SCHEDULE C | H19: SCHEDULE C | I19: SCHEDULE C | J19: SCHEDULE C | K19: SCHEDULE C
B20: ADMINISTRATOR | C20: =SUM(E20:H20) ->  | D20: =_C000131 -> 0 | E20: =ROUND(+$D20*E$18,2) -> 
B21: OWNER | C21: =SUM(E21:H21) ->  | D21: ='C'!E14 -> 0
B22: CHIEF EXECUTIVE | D22: ='C'!E15 -> 0
B23: OTHER AMDINISTRATIVE STAFF | D23: ='C'!E16 -> 0
B24: PROGRAM MANAGEMENT | D24: =_C000139 -> 0
B25: ACCOUNTING/BOOKKEEPING | D25: =_C000147 -> 0
B26: MAINTENANCE | D26: =_C000155 -> 0
B27: OTHER NON ISS STAFF | D27: =_C000163 -> 0
A28: 4 | B28: ADMINISTRATIVE EXPENSE
B29: ADMIN. SALARIES & WAGES | C29: =SUM(E29:H29) ->  | D29: =_C000211 -> 0 | E29: =ROUND(+$D29*E$18,2) -> 
B30: ADMIN. BENEFITS & PR TAXES | C30: =SUM(E30:H30) ->  | D30: =_C000219 -> 0
B31: OWNER SALARIES & WAGES | D31: ='C'!E31 -> 0
B32: OWNER BENEFITS & PR TAXES | D32: ='C'!E39 -> 0
B33: CHIEF EXECUTIVE SALARIES & WAGES | D33: ='C'!E32 -> 0
B34: CHIEF EXECUTIVE BENEFITS & PR TAXES | D34: ='C'!E40 -> 0
B35: OTHER ADMINISTRATIVE STAFF SALARIES & WAGES | D35: ='C'!E33 -> 0
B36: OTHER ADMINISTRATIVE STAFF BENEFITS & PR TAXES | D36: ='C'!E41 -> 0
B37: PROGRAM MANAGEMENT SALARIES & WAGES | D37: ='C'!E34 -> 0
B38: PROGRAM MANAGEMENT BENEFITS & PR TAXES | D38: ='C'!E42 -> 0
B39: ACCOUNTING/BOOKKEEPING SALARIES & WAGES | D39: ='C'!E35 -> 0
B40: ACCOUNTING/BOOKKEEPING BENEFITS & PR TAXES | D40: ='C'!E43 -> 0
B41: MAINTENANCE SALARIES & WAGES | D41: ='C'!E36 -> 0
B42: MAINTENANCE BENEFITS & PR TAXES | D42: ='C'!E44 -> 0
B43: OTHER NON-ISS SALARIES & WAGES | D43: ='C'!E37 -> 0
B44: OTHER NON-ISS BENEFITS & PR TAXES | D44: ='C'!E45 -> 0
B45: PURCHASED PROFESSIONAL SERVICES | D45: =_C000227 -> 0
B46: MANAGEMENT FEES | D46: =_C000235 -> 0
B47: TOTAL ADMINISTRATIVE EXP. | C47: =SUM(C29:C46) ->  | D47: 0 | J47: =SUM(J29:J46) ->  | K47: =SUM(K29:K46) -> 
A48: 5 | B48: PROGRAM OPERATIONS EXPENSE
B49: Administrative Supplies | D49: =_C000283 -> 0 | E49: =ROUND(+$D49*E$18,2) -> 
B50: Administrative Travel Expenses | D50: =_C000291 -> 0
B51: Advertising Expense | D51: =_C000299 -> 0
B52: Professional Liability Insurance | D52: =_C000307 -> 0
B53: Other General Admin. Expense | D53: =_C000315 -> 0
B54: TOTAL PROGRAM OPERATIONS EXPENSE | C54: =SUM(C49:C53) ->  | D54: 0 | J54: =SUM(J49:J53) ->  | K54: =SUM(K49:K53) -> 
A55: 6 | B55: CAPITAL & PROPERTY EXPENSES
B56: Depreciation - Bldgs., Bldg. Improv., Leasehold Improv., Furn. & Equip | D56: =_C000371 -> 0 | E56: =ROUND(+$D56*E$18,2) -> 
B57: Square Footage | D57: ='C'!E81 -> 0
B58: Communications Expense | D58: =_C000379 -> 0
B59: Facility Insurance Expense | D59: =_C000387 -> 0
B60: Office Rent Expense | D60: =_C000395 -> 0
B61: Square Footage | D61: ='C'!E85 -> 0
B62: Lease Payments Expense | D62: =_C000403 -> 0
B63: Utilities Expense | D63: =_C000411 -> 0
B64: Property Taxes | D64: =_C000419 -> 0
B65: Minor Equipment Expense | D65: =_C000427 -> 0
B66: Other Property Expense | D66: =_C000435 -> 0
B67: TOTAL CAPTIAL & PROPERTY EXPENSE | C67: =SUM(C56,C58:C60,C62:C66) ->  | D67: =SUM(D56,D58:D60,D62:D66) -> 0 | E67: =SUM(E56,E58:E60,E62:E66) -> 
A68: 7 | B68: INTEREST & TAX EXPENSE
B69: INTEREST EXPENSE: Working Capital & Line-of-Credit Debt Expense | C69: =SUM(E69:H69) ->  | D69: =_C000523 -> 0 | E69: =ROUND(+$D69*E$18,2) -> 
B70: BUSINESS TAXES | C70: =SUM(E70:H70) ->  | D70: =_C000531 -> 0
A71: 8 | B71: TOTALS | C71: =+C47+C54+C67+C69+C70 ->  | D71: 0 | J71: =+J47+J54+J67+J69+J70 ->  | K71: =+K47+K54+K67+K69+K70 -> 
A72: 3 | B72: ADMIN. & OTHER NON ISS STAFF HOURS | C72: NON ALLOCATED | E72: SCHEDULE C | F72: SCHEDULE C | G72: SCHEDULE C | H72: SCHEDULE C | I72: SCHEDULE C | J72: SCHEDULE C | K72: SCHEDULE C
B73: ADMINISTRATOR | C73: =SUM(E73:H73) -> 0 | D73: =SUM(E73:K73) -> 0 | E73: =_C000172 -> 0 | F73: =_C000173 -> 0 | G73: =_C000174 -> 0 | H73: =_C000175 -> 0 | I73: =_C000176 -> 0 | J73: =_C000177 -> 0 | K73: =_C000178 -> 0
B74: OWNER | C74: 0 | D74: =SUM(E74:K74) -> 0 | E74: ='C'!F22 -> 0 | F74: ='C'!G22 -> 0 | G74: ='C'!H22 -> 0 | H74: ='C'!I22 -> 0 | I74: ='C'!J22 -> 0 | J74: ='C'!K22 -> 0 | K74: ='C'!L22 -> 0
B75: CHIEF EXECUTIVE | C75: 0 | D75: 0 | E75: ='C'!F23 -> 0 | F75: ='C'!G23 -> 0 | G75: ='C'!H23 -> 0 | H75: ='C'!I23 -> 0 | I75: ='C'!J23 -> 0 | J75: ='C'!K23 -> 0 | K75: ='C'!L23 -> 0
B76: OTHER ADMINISTRATIVE STAFF | C76: 0 | D76: 0 | E76: ='C'!F24 -> 0 | F76: ='C'!G24 -> 0 | G76: ='C'!H24 -> 0 | H76: ='C'!I24 -> 0 | I76: ='C'!J24 -> 0 | J76: ='C'!K24 -> 0 | K76: ='C'!L24 -> 0
B77: PROGRAM MANAGEMENT | C77: 0 | D77: 0 | E77: =_C000180 -> 0 | F77: =_C000181 -> 0 | G77: =_C000182 -> 0 | H77: =_C000183 -> 0 | I77: =_C000184 -> 0 | J77: =_C000185 -> 0 | K77: =_C000186 -> 0
B78: ACCOUNTING/BOOKKEEPING | C78: 0 | D78: 0 | E78: =_C000188 -> 0 | F78: =_C000189 -> 0 | G78: =_C000190 -> 0 | H78: =_C000191 -> 0 | I78: =_C000192 -> 0 | J78: =_C000193 -> 0 | K78: =_C000194 -> 0
B79: MAINTENANCE | C79: 0 | D79: 0 | E79: =_C000196 -> 0 | F79: =_C000197 -> 0 | G79: =_C000198 -> 0 | H79: =_C000199 -> 0 | I79: =_C000200 -> 0 | J79: =_C000201 -> 0 | K79: =_C000202 -> 0
B80: OTHER NON ISS STAFF | C80: =SUM(E80:H80) -> 0 | D80: 0 | E80: =_C000204 -> 0 | F80: =_C000205 -> 0 | G80: =_C000206 -> 0 | H80: =_C000207 -> 0 | I80: =_C000208 -> 0 | J80: =_C000209 -> 0 | K80: =_C000210 -> 0
A81: 4 | B81: ADMINISTRATIVE EXPENSE
B82: ADMIN. SALARIES & WAGES | C82: 0 | D82: =SUM(E82:K82) -> 0 | E82: =_C000244 -> 0 | F82: =_C000245 -> 0 | G82: =_C000246 -> 0 | H82: =_C000247 -> 0 | I82: =_C000248 -> 0 | J82: =_C000249 -> 0 | K82: =_C000250 -> 0
B83: ADMIN. BENEFITS & PR TAXES | C83: 0 | D83: =SUM(E83:K83) -> 0 | E83: =_C000252 -> 0 | F83: =_C000253 -> 0 | G83: =_C000254 -> 0 | H83: =_C000255 -> 0 | I83: =_C000256 -> 0 | J83: =_C000257 -> 0 | K83: =_C000258 -> 0
B84: OWNER SALARIES & WAGES | C84: 0 | D84: 0 | E84: ='C'!F49 -> 0 | F84: ='C'!G49 -> 0 | G84: ='C'!H49 -> 0 | H84: ='C'!I49 -> 0 | I84: ='C'!J49 -> 0 | J84: ='C'!K49 -> 0 | K84: ='C'!L49 -> 0
B85: OWNER BENEFITS & PR TAXES | C85: 0 | D85: 0 | E85: ='C'!F57 -> 0 | F85: ='C'!G57 -> 0 | G85: ='C'!H57 -> 0 | H85: ='C'!I57 -> 0 | I85: ='C'!J57 -> 0 | J85: ='C'!K57 -> 0 | K85: ='C'!L57 -> 0
B86: CHIEF EXECUTIVE SALARIES & WAGES | C86: 0 | D86: 0 | E86: ='C'!F50 -> 0 | F86: ='C'!G50 -> 0 | G86: ='C'!H50 -> 0 | H86: ='C'!I50 -> 0 | I86: ='C'!J50 -> 0 | J86: ='C'!K50 -> 0 | K86: ='C'!L50 -> 0
B87: CHIEF EXECUTIVE BENEFITS & PR TAXES | C87: 0 | D87: 0 | E87: ='C'!F58 -> 0 | F87: ='C'!G58 -> 0 | G87: ='C'!H58 -> 0 | H87: ='C'!I58 -> 0 | I87: ='C'!J58 -> 0 | J87: ='C'!K58 -> 0 | K87: ='C'!L58 -> 0
B88: OTHER ADMINISTRATIVE STAFF SALARIES & WAGES | C88: 0 | D88: 0 | E88: ='C'!F51 -> 0 | F88: ='C'!G51 -> 0 | G88: ='C'!H51 -> 0 | H88: ='C'!I51 -> 0 | I88: ='C'!J51 -> 0 | J88: ='C'!K51 -> 0 | K88: ='C'!L51 -> 0
B89: OTHER ADMINISTRATIVE STAFF BENEFITS & PR TAXES | C89: 0 | D89: 0 | E89: ='C'!F59 -> 0 | F89: ='C'!G59 -> 0 | G89: ='C'!H59 -> 0 | H89: ='C'!I59 -> 0 | I89: ='C'!J59 -> 0 | J89: ='C'!K59 -> 0 | K89: ='C'!L59 -> 0
B90: PROGRAM MANAGEMENT SALARIES & WAGES | C90: 0 | D90: 0 | E90: ='C'!F52 -> 0 | F90: ='C'!G52 -> 0 | G90: ='C'!H52 -> 0 | H90: ='C'!I52 -> 0 | I90: ='C'!J52 -> 0 | J90: ='C'!K52 -> 0 | K90: ='C'!L52 -> 0
B91: PROGRAM MANAGEMENT BENEFITS & PR TAXES | C91: 0 | D91: 0 | E91: ='C'!F60 -> 0 | F91: ='C'!G60 -> 0 | G91: ='C'!H60 -> 0 | H91: ='C'!I60 -> 0 | I91: ='C'!J60 -> 0 | J91: ='C'!K60 -> 0 | K91: ='C'!L60 -> 0
B92: ACCOUNTING/BOOKKEEPING SALARIES & WAGES | C92: 0 | D92: 0 | E92: ='C'!F53 -> 0 | F92: ='C'!G53 -> 0 | G92: ='C'!H53 -> 0 | H92: ='C'!I53 -> 0 | I92: ='C'!J53 -> 0 | J92: ='C'!K53 -> 0 | K92: ='C'!L53 -> 0
B93: ACCOUNTING/BOOKEEPING BENEFITS & PR TAXES | C93: 0 | D93: 0 | E93: ='C'!F61 -> 0 | F93: ='C'!G61 -> 0 | G93: ='C'!H61 -> 0 | H93: ='C'!I61 -> 0 | I93: ='C'!J61 -> 0 | J93: ='C'!K61 -> 0 | K93: ='C'!L61 -> 0
B94: MAINTENANCE SALARIES & WAGES | C94: 0 | D94: 0 | E94: ='C'!F54 -> 0 | F94: ='C'!G54 -> 0 | G94: ='C'!H54 -> 0 | H94: ='C'!I54 -> 0 | I94: ='C'!J54 -> 0 | J94: ='C'!K54 -> 0 | K94: ='C'!L54 -> 0
B95: MAINTENANCE BENEFITS & PR TAXES | C95: 0 | D95: 0 | E95: ='C'!F62 -> 0 | F95: ='C'!G62 -> 0 | G95: ='C'!H62 -> 0 | H95: ='C'!I62 -> 0 | I95: ='C'!J62 -> 0 | J95: ='C'!K62 -> 0 | K95: ='C'!L62 -> 0
B96: OTHER NON-ISS STAFF SALARIES & WAGES | C96: 0 | D96: 0 | E96: ='C'!F55 -> 0 | F96: ='C'!G55 -> 0 | G96: ='C'!H55 -> 0 | H96: ='C'!I55 -> 0 | I96: ='C'!J55 -> 0 | J96: ='C'!K55 -> 0 | K96: ='C'!L55 -> 0
B97: OTHER NON-ISS STAFF BENEFITS & PR TAXES | C97: 0 | D97: 0 | E97: ='C'!F63 -> 0 | F97: ='C'!G63 -> 0 | G97: ='C'!H63 -> 0 | H97: ='C'!I63 -> 0 | I97: ='C'!J63 -> 0 | J97: ='C'!K63 -> 0 | K97: ='C'!L63 -> 0
B98: PURCHASED PROFESSIONAL SERVICES | C98: 0 | D98: 0 | E98: =_C000260 -> 0 | F98: =_C000261 -> 0 | G98: =_C000262 -> 0 | H98: =_C000263 -> 0 | I98: =_C000264 -> 0 | J98: =_C000265 -> 0 | K98: =_C000266 -> 0
B99: MANAGEMENT FEES | C99: 0 | D99: 0 | E99: =_C000268 -> 0 | F99: =_C000269 -> 0 | G99: =_C000270 -> 0 | H99: =_C000271 -> 0 | I99: =_C000272 -> 0 | J99: =_C000273 -> 0 | K99: =_C000274 -> 0
B100: TOTAL ADMINISTRATIVE EXPENSE | C100: =SUM(C82:C99) -> 0 | D100: 0 | E100: 0 | F100: =SUM(F82:F99) -> 0 | G100: 0 | H100: 0 | I100: 0 | J100: =SUM(J82:J99) -> 0 | K100: =SUM(K82:K99) -> 0
A101: 5 | B101: PROGRAM OPERATIONS EXPENSE
B102: Administrative Supplies | C102: =SUM(E102:H102) -> 0 | D102: =SUM(E102:K102) -> 0 | E102: =_C000324 -> 0 | F102: =_C000325 -> 0 | G102: =_C000326 -> 0 | H102: =_C000327 -> 0 | I102: =_C000328 -> 0 | J102: =_C000329 -> 0 | K102: =_C000330 -> 0
B103: Administrative Travel Expenses | C103: =SUM(E103:H103) -> 0 | D103: =SUM(E103:K103) -> 0 | E103: =_C000332 -> 0 | F103: =_C000333 -> 0 | G103: =_C000334 -> 0 | H103: =_C000335 -> 0 | I103: =_C000336 -> 0 | J103: =_C000337 -> 0 | K103: =_C000338 -> 0
B104: Advertising Expense | C104: =SUM(E104:H104) -> 0 | D104: =SUM(E104:K104) -> 0 | E104: =_C000340 -> 0 | F104: =_C000341 -> 0 | G104: =_C000342 -> 0 | H104: =_C000343 -> 0 | I104: =_C000344 -> 0 | J104: =_C000345 -> 0 | K104: =_C000346 -> 0
B105: Professional Liability Insurance | C105: =SUM(E105:H105) -> 0 | D105: =SUM(E105:K105) -> 0 | E105: =_C000348 -> 0 | F105: =_C000349 -> 0 | G105: =_C000350 -> 0 | H105: =_C000351 -> 0 | I105: =_C000352 -> 0 | J105: =_C000353 -> 0 | K105: =_C000354 -> 0
B106: Other General Admin. Expense | C106: =SUM(E106:H106) -> 0 | D106: =SUM(E106:K106) -> 0 | E106: =_C000356 -> 0 | F106: =_C000357 -> 0 | G106: =_C000358 -> 0 | H106: =_C000359 -> 0 | I106: =_C000360 -> 0 | J106: =_C000361 -> 0 | K106: =_C000362 -> 0
B107: TOTAL PROGRAM OPERATIONS EXPENSE | C107: =SUM(C102:C106) -> 0 | D107: 0 | E107: 0 | F107: 0 | G107: 0 | H107: 0 | I107: 0 | J107: =SUM(J102:J106) -> 0 | K107: =SUM(K102:K106) -> 0
A108: 6 | B108: CAPITAL & PROPERTY EXPENSES
B109: Depreciation - Bldgs., Bldg. Improv., Leasehold Improv., Furn. & Equip | C109: =SUM(E109:H109) -> 0 | D109: =SUM(E109:K109) -> 0 | E109: =_C000444 -> 0 | F109: =_C000445 -> 0 | G109: =_C000446 -> 0 | H109: =_C000447 -> 0 | I109: =_C000448 -> 0 | J109: =_C000449 -> 0 | K109: =_C000450 -> 0
B110: Square Footage | C110: 0 | D110: 0 | E110: ='C'!F92 -> 0 | F110: ='C'!G92 -> 0 | G110: ='C'!H92 -> 0 | H110: ='C'!I92 -> 0 | I110: ='C'!J92 -> 0 | J110: ='C'!K92 -> 0 | K110: ='C'!L92 -> 0
B111: Communications Expense | C111: 0 | D111: 0 | E111: =_C000452 -> 0 | F111: =_C000453 -> 0 | G111: =_C000454 -> 0 | H111: =_C000455 -> 0 | I111: =_C000456 -> 0 | J111: =_C000457 -> 0 | K111: =_C000458 -> 0
B112: Facility Insurance Expense | C112: 0 | D112: 0 | E112: =_C000460 -> 0 | F112: =_C000461 -> 0 | G112: =_C000462 -> 0 | H112: =_C000463 -> 0 | I112: =_C000464 -> 0 | J112: =_C000465 -> 0 | K112: =_C000466 -> 0
B113: Office Rent Expense | C113: 0 | D113: 0 | E113: =_C001581 -> 0 | F113: =_C000469 -> 0 | G113: =_C000470 -> 0 | H113: =_C000471 -> 0 | I113: =_C000472 -> 0 | J113: =_C000473 -> 0 | K113: =_C000474 -> 0
B114: Square Footage | C114: 0 | D114: 0 | E114: =_C000476 -> 0 | F114: =_C000477 -> 0 | G114: =_C000478 -> 0 | H114: =_C000479 -> 0 | I114: =_C000480 -> 0 | J114: =_C000481 -> 0 | K114: =_C000482 -> 0
B115: Lease Payments Expense | C115: 0 | D115: 0 | E115: ='C'!F97 -> 0 | F115: ='C'!G97 -> 0 | G115: ='C'!H97 -> 0 | H115: ='C'!I97 -> 0 | I115: ='C'!J97 -> 0 | J115: ='C'!K97 -> 0 | K115: ='C'!L97 -> 0
B116: Utilities Expense | C116: 0 | D116: 0 | E116: =_C000484 -> 0 | F116: =_C000485 -> 0 | G116: =_C000486 -> 0 | H116: =_C000487 -> 0 | I116: =_C000488 -> 0 | J116: =_C000489 -> 0 | K116: =_C000490 -> 0
B117: Property Taxes | C117: 0 | D117: 0 | E117: =_C000492 -> 0 | F117: =_C000493 -> 0 | G117: =_C000494 -> 0 | H117: =_C000495 -> 0 | I117: =_C000496 -> 0 | J117: =_C000497 -> 0 | K117: =_C000498 -> 0
B118: Minor Equipment Expense | C118: 0 | D118: 0 | E118: =_C000500 -> 0 | F118: =_C000501 -> 0 | G118: =_C000502 -> 0 | H118: =_C000503 -> 0 | I118: =_C000504 -> 0 | J118: =_C000505 -> 0 | K118: =_C000506 -> 0
B119: Other Property Expense | C119: 0 | D119: 0 | E119: =_C000508 -> 0 | F119: =_C000509 -> 0 | G119: =_C000510 -> 0 | H119: =_C000511 -> 0 | I119: =_C000512 -> 0 | J119: =_C000513 -> 0 | K119: =_C000514 -> 0
B120: TOTAL CAPTIAL & PROPERTY EXPENSE | C120: =SUM(C109,C111:C113,C115:C119) -> 0 | D120: 0 | E120: 0 | F120: 0 | G120: 0 | H120: 0 | I120: 0 | J120: 0 | K120: 0
A121: 7 | B121: INTEREST & TAX EXPENSE
B122: INTEREST EXPENSE: Working Capital & Line-of-Credit Debt Exp. | C122: =SUM(E122:H122) -> 0 | D122: =SUM(E122:K122) -> 0 | E122: =_C000540 -> 0 | F122: =_C000541 -> 0 | G122: =_C000542 -> 0 | H122: =_C000543 -> 0 | I122: =_C000544 -> 0 | J122: =_C000545 -> 0 | K122: =_C000546 -> 0
B123: BUSINESS TAXES | C123: =SUM(E123:H123) -> 0 | D123: =SUM(E123:K123) -> 0 | E123: =_C000548 -> 0 | F123: =_C000549 -> 0 | G123: =_C000550 -> 0 | H123: =_C000551 -> 0 | I123: =_C000552 -> 0 | J123: =_C000553 -> 0 | K123: =_C000554 -> 0
A124: 8 | B124: TOTALS | C124: =+C100+C107+C120+C122+C123 -> 0 | D124: 0 | E124: 0 | F124: 0 | G124: 0 | H124: 0 | I124: 0 | J124: =+J100+J107+J120+J122+J123 -> 0 | K124: =+K100+K107+K120+K122+K123 -> 0
A125: 3 | B125: ADMIN. & OTHER NON ISS STAFF HOURS | C125: TOTAL SCHEDULE C-Sum | E125: TOTAL SCHEDULE C-Sum
B126: ADMINISTRATOR HOURS WORKED | C126: =SUM(E126:H126) ->  | D126: =SUM(E126:K126) ->  | E126: =+E20+E73 -> 
B127: OWNER HOURS WORKED | D127: =SUM(E127:K127) -> 
B128: CHIEF EXECUTIVE HOURS WORKED
B129: OTHER AMDINISTRATIVE STAFF HOURS WORKED
B130: PROGRAM MANAGEMENT HOURS WORKED | E130: =+E24+E77 ->  | J130: =+J24+J77 -> 
B131: ACCOUNTING/BOOKKEEPING HOURS WORKED
B132: MAINTENANCE HOURS WORKED
B133: OTHER NON ISS STAFF HOURS WORKED
A134: 4 | B134: ADMINISTRATIVE EXPENSES
B135: ADMINISTRATOR SALARIES & WAGES | D135: =SUM(E135:K135) ->  | E135: =+E29+E82 ->  | J135: =+J29+J82 -> 
B136: ADMINISTRATOR BENEFITS & PR TAXES | D136: =SUM(E136:K136) -> 
B137: OWNER SALARIES & WAGES
B138: OWNER BENEFITS & PR TAXES
B139: CHIEF EXECUTIVE SALARIES & WAGES
B140: CHIEF EXECUTIVE BENEFITS & PR TAXES
B141: OTHER ADMINISTRATIVE STAFF SALARIES & WAGES
B142: OTHER ADMINISTRATIVE STAFF BENEFITS & PR TAXES
B143: PROGRAM MANAGEMENT SALARIES & WAGES
B144: PROGRAM MANAGEMENT BENEFITS & PR TAXES
B145: ACCOUNTING/BOOKKEEPING SALARIES & WAGES | E145: =+E39+E92 -> 
B146: ACCOUNTING/BOOKEEPING BENEFITS & PR TAXES
B147: MAINTENANCE SALARIES & WAGES
B148: MAINTENANCE BENEFITS & PR TAXES
B149: OTHER NON-ISS STAFF SALARIES & WAGES
B150: OTHER NON-ISS STAFF BENEFITS & PR TAXES
B151: PURCHASED PROFESSIONAL SERVICES
B152: MANAGEMENT FEES
B153: TOTAL ADMINISTRATIVE EXPENSES | C153: =SUM(C135:C152) ->  | J153: =SUM(J135:J152) ->  | K153: =SUM(K135:K152) -> 
A154: 5 | B154: PROGRAM OPERATIONS/OVERHEAD EXPENSES
B155: ADMINISTRATIVE SUPPLIES | C155: =SUM(E155:H155) ->  | D155: =SUM(E155:K155) ->  | E155: =+E49+E102 ->  | J155: =+J49+J102 -> 
B156: ADMINISTRATIVE TRAVEL EXPENSES | C156: =SUM(E156:H156) ->  | D156: =SUM(E156:K156) -> 
B157: ADVERTISING EXPENSE | C157: =SUM(E157:H157) ->  | D157: =SUM(E157:K157) -> 
B158: PROFESSIONAL LIABILITY INSURANCE | C158: =SUM(E158:H158) ->  | D158: =SUM(E158:K158) -> 
B159: OTHER GENERAL ADMINISTRATIVE EXPENSES | C159: =SUM(E159:H159) ->  | D159: =SUM(E159:K159) -> 
B160: TOTAL PROGRAM OPERATIONS/OVERHEAD EXPENSES | C160: =SUM(C155:C159) ->  | J160: =SUM(J155:J159) ->  | K160: =SUM(K155:K159) -> 
A161: 6 | B161: CAPITAL & PROPERTY EXPENSES
B162: DEPRECIATION - BLDGS, BLDG/LEASEHOLD IMPROVEMENTS, FURNITURE & EQUIPTMENT | C162: =SUM(E162:H162) ->  | D162: =SUM(E162:K162) ->  | E162: =+E56+E109 ->  | J162: =+J56+J109 -> 
B163: SQUARE FOOTAGE
B164: TELEPHONE EXPENSE
B165: CAPITAL & PROPERTY INSURANCE EXPENSES
B166: OFFICE RENT EXPENSE
B167: SQUARE FOOTAGE
B168: LEASE PAYMENTS EXPENSE
B169: UTILITIES EXPENSE
B170: PROPERTY TAXES
B171: MINOR EQUIPMENT EXPENSES
B172: OTHER CAPITAL & PROPERTY EXPENSES
B173: TOTAL CAPITAL & PROPERTY EXPENSES | C173: =SUM(C162,C164:C166,C168:C172) ->  | D173: =SUM(D162,D164:D166,D168:D172) ->  | E173: =SUM(E162,E164:E166,E168:E172) ->  | F173: =SUM(F162,F164:F166,F168:F172) -> 
A174: 7 | B174: INTEREST & TAX EXPENSE
B175: WORKING CAPITAL & LOC INTEREST EXPENSES | C175: =SUM(E175:H175) ->  | D175: =SUM(E175:K175) ->  | E175: =+E69+E122 ->  | J175: =+J69+J122 ->  | K175: =+K69+K122 -> 
B176: BUSINESS TAXES | C176: =SUM(E176:H176) ->  | D176: =SUM(E176:K176) ->  | J176: =+J70+J123 ->  | K176: =+K70+K123 -> 
A177: 8 | B177: TOTAL SCHEDULE C EXPENSES | C177: =+C153+C160+C173+C175+C176 ->  | J177: =+J153+J160+J173+J175+J176 ->  | K177: =+K153+K160+K173+K175+K176 -> 
A178: =+A177+1 -> 9 | B178: TOTAL EXPENSES FROM SCHEDULE C | C178: =SUM(E178:H178) ->  | D178: =SUM(E178:K178) ->  | E178: =+E177 -> 
A179: 10 | B179: ISS STAFF SALARIES & WAGES (INCLUDING PTO) | C179: 0 | D179: 0 | E179: =_C000864 -> 0 | F179: =_C000865 -> 0 | G179: =_C000866 -> 0 | H179: =_C000867 -> 0 | I179: =_C000868 -> 0 | J179: =_C000869 -> 0 | K179: =_C000870 -> 0
A180: 11 | B180: PROFESSIONAL SVS ISS STAFF SALARIES & WAGES (INCLUDING PTO) | C180: 0 | D180: 0 | E180: =_C000872 -> 0 | F180: =_C000873 -> 0 | G180: =_C000874 -> 0 | H180: =_C000875 -> 0 | I180: =_C000876 -> 0 | J180: =_C000877 -> 0 | K180: =_C000878 -> 0
A181: 12 | B181: ISS & PROFESSIONAL SVS ISS STAFF BENEFITS & PR TAXES | C181: 0 | D181: 0 | E181: =_C000880 -> 0 | F181: =_C000881 -> 0 | G181: =_C000882 -> 0 | H181: =_C000883 -> 0 | I181: =_C000884 -> 0 | J181: =_C000885 -> 0 | K181: =_C000886 -> 0
A182: 13 | B182: ISS PURCHASED PROFESSIONAL SERVICES | C182: 0 | D182: 0 | E182: =_C000888 -> 0 | F182: =_C000889 -> 0 | G182: =_C000890 -> 0 | H182: =_C000891 -> 0 | I182: =_C000892 -> 0 | J182: =_C000893 -> 0 | K182: =_C000894 -> 0
A183: 14 | B183: STAFF LODGING EXPENSES (SALARY & WAGES) | C183: 0 | D183: 0 | E183: =_C000896 -> 0 | F183: =_C000897 -> 0 | G183: =_C000898 -> 0 | H183: =_C000899 -> 0 | I183: =_C000900 -> 0 | J183: =_C000901 -> 0 | K183: =_C000902 -> 0
A184: =+A183+1 -> 15 | B184: TOT ISS/DIRECT CARE STAFF COMPENSATION | C184: =SUM(C179:C183) -> 0 | D184: 0 | E184: 0 | F184: 0 | G184: 0 | H184: 0 | I184: 0 | J184: 0 | K184: 0
A185: 16 | B185: ADMINISTRATOR ISS SALARY & WAGES | C185: =SUM(E185:H185) -> 0 | D185: =SUM(E185:K185) -> 0 | E185: =_C000912 -> 0 | F185: =_C000913 -> 0 | G185: =_C000914 -> 0 | H185: =_C000915 -> 0 | I185: =_C000916 -> 0 | J185: =_C000917 -> 0 | K185: =_C000918 -> 0
A186: 17 | B186: ADMINISTRATOR ISS BENEFITS & PR TAXES | C186: =SUM(E186:H186) -> 0 | D186: =SUM(E186:K186) -> 0 | E186: =_C000920 -> 0 | F186: =_C000921 -> 0 | G186: =_C000922 -> 0 | H186: =_C000923 -> 0 | I186: =_C000924 -> 0 | J186: =_C000925 -> 0 | K186: =_C000926 -> 0
A187: 18 | B187: TOTAL ADMINISTRATOR ISS COMPENSATION | C187: =SUM(C185:C186) -> 0 | D187: 0 | E187: 0 | F187: 0 | G187: 0 | H187: 0 | I187: 0 | J187: =SUM(J185:J186) -> 0 | K187: =SUM(K185:K186) -> 0
A188: 19 | B188: NON-ISS STAFF LODGING EXPENSES (HOUSING FOR ON DUTY STAFF - NOT PRIMARY HOME FOR STAFF) | C188: =SUM(E188:H188) -> 0 | D188: =SUM(E188:K188) -> 0 | E188: =_C000936 -> 0 | F188: =_C000937 -> 0 | G188: =_C000938 -> 0 | H188: =_C000939 -> 0 | I188: =_C000940 -> 0 | J188: =_C000941 -> 0 | K188: =_C000942 -> 0
A189: 20 | B189: FOOD COSTS - RESIDENT (GH ONLY) | C189: =SUM(E189:H189) -> 0 | D189: 0 | E189: =_C000944 -> 0 | F189: =_C000945 -> 0 | G189: =_C000946 -> 0 | H189: =_C000947 -> 0 | I189: =_C000948 -> 0 | J189: =_C000949 -> 0 | K189: =_C000950 -> 0
A190: 21 | B190: FOOD COSTS - STAFF | C190: 0 | D190: 0 | E190: =_C000952 -> 0 | F190: =_C000953 -> 0 | G190: =_C000954 -> 0 | H190: =_C000955 -> 0 | I190: =_C000956 -> 0 | J190: =_C000957 -> 0 | K190: =_C000958 -> 0
A191: 22 | B191: EDUCATION & IN-SERVICE TRAINING & SUPPLIES | C191: 0 | D191: 0 | E191: =_C000960 -> 0 | F191: =_C000961 -> 0 | G191: =_C000962 -> 0 | H191: =_C000963 -> 0 | I191: =_C000964 -> 0 | J191: =_C000965 -> 0 | K191: =_C000966 -> 0
A192: 23 | B192: ACTIVITY & HABILITATIVE SUPPLIES EXPENSES | C192: 0 | D192: 0 | E192: =_C000968 -> 0 | F192: =_C000969 -> 0 | G192: =_C000970 -> 0 | H192: =_C000971 -> 0 | I192: =_C000972 -> 0 | J192: =_C000973 -> 0 | K192: =_C000974 -> 0
A193: 24 | B193: NURSING SUPPLIES EXPENSES | C193: 0 | D193: 0 | E193: =_C000976 -> 0 | F193: =_C000977 -> 0 | G193: =_C000978 -> 0 | H193: =_C000979 -> 0 | I193: =_C000980 -> 0 | J193: =_C000981 -> 0 | K193: =_C000982 -> 0
A194: 25 | B194: TRANSPORTATION EXPENSES
A195: 26 | B195: STAFF MILEAGE REIMBURSEMENT | C195: 0 | D195: =SUM(E195:K195) -> 0 | E195: =_C000984 -> 0 | F195: =_C000985 -> 0 | G195: =_C000986 -> 0 | H195: =_C000987 -> 0 | I195: =_C000988 -> 0 | J195: =_C000989 -> 0 | K195: =_C000990 -> 0
A196: =+A195+1 -> 27 | B196: OTHER VEHICILE EXPENSES | C196: 0 | D196: =SUM(E196:K196) -> 0 | E196: =_C000992 -> 0 | F196: =_C000993 -> 0 | G196: =_C000994 -> 0 | H196: =_C000995 -> 0 | I196: =_C000996 -> 0 | J196: =_C000997 -> 0 | K196: =_C000998 -> 0
A197: =+A196+1 -> 28 | B197: MILEAGE - STAFF OWNED VEHICLES | C197: 0 | D197: =SUM(E197:K197) -> 0 | E197: =E!E36 -> 0 | F197: =E!F36 -> 0 | G197: =E!G36 -> 0 | H197: =E!H36 -> 0 | I197: =E!I36 -> 0 | J197: =E!J36 -> 0 | K197: =E!K36 -> 0
A198: =+A197+1 -> 29 | B198: MILEAGE - AGENCY OWNED VEHICLES | C198: 0 | D198: =SUM(E198:K198) -> 0 | E198: =E!E37 -> 0 | F198: =E!F37 -> 0 | G198: =E!G37 -> 0 | H198: =E!H37 -> 0 | I198: =E!I37 -> 0 | J198: =E!J37 -> 0 | K198: =E!K37 -> 0
A199: =+A198+1 -> 30 | B199: MAINTENANCE/LAUNDRY/HOUSEKEEPING/DIETARY
A200: 31 | B200: SALARIES & WAGES | C200: 0 | D200: =SUM(E200:K200) -> 0 | E200: =_C001000 -> 0 | F200: =_C001001 -> 0 | G200: =_C001002 -> 0 | H200: =_C001003 -> 0 | I200: =_C001004 -> 0 | J200: =_C001005 -> 0 | K200: =_C001007 -> 0
... 42 more rows

Sheet A
A1: SCHEDULE A
B4: PART A - PROVIDER IDENTIFYING INFORMATION
B5: 1. PROVIDER AGENCY NAME | D5: 2. PROVIDER ONE ID (a) SSPS ID (b)
D6: =IF(_M000001="","",VLOOKUP(_M000001,Lists!$A$2:$C$138,2,FALSE)) ->  | E6: a
D7: =IF(_M000001="","",IF(VLOOKUP(_M000001,Lists!$A$2:$C$138,3,FALSE)="","",VLOOKUP(_M000001,Lists!$A$2:$C$138,3,FALSE))) ->  | E7: b
B8: 3. PROVIDER MAILING ADDRESS | C8: 4. CITY, ZIP | D8: 5. PROVIDER PHONE NUMBER
B10: 6. ADMINISTRATOR | C10: 7. E-MAIL ADDRESS | D10: 8. DDA REGION ID
D11: =LEFT(_M000001,2) -> 
B12: 9. HOME OFFICE/CORPORATE NAME (please indicate if NONE or SAME AS ABOVE)
B14: 10. HOME OFFICE MAILING ADDRESS | C14: 11. CITY AND ZIP | D14: 12. HOME OFFICE PHONE No.
B16: 13. COST REPORT PREPARER | C16: 14. FIRM NAME
B18: 15. REPORT CONTACT INDIVIDUAL(S) | C18: 16. CONTACT PHONE # | D18: 17. CONTACT e-mail Address
B20: 18. COST REPORT PERIOD | D20: 19. REPORTING PURPOSE
B21: 2018-01-01 | C21: 2018-12-31 | D21: Cost Report
B22: FROM: | C22: TO:
B23: PART B. - CERTIFICATION
B24: MISREPRESENTATION OR FALSIFICATION OF ANY INFORMATION CONTAINED IN THIS COST REPORT MAY BE PUNISHABLE BY FINE AND/OR IMPRISONMENT UNDER STATE OR FEDERAL LAW
C25: CERTIFICATION
B26: I HEREBY CERTIFY that I have read the above statement and that I have examined the accompanying cost report and
B27: supporting schedules prepared for:
C28: (Provider Name)
B29: and to the best of my knowledge and belief, it is a true, correct and complete statement prepared in accordance with applicable instructions, except as noted.
C31: SIGNATURE of PERSON SIGNING PROVIDER FEDERAL INCOME TAX RETURN
C33: TITLE | D33: DATE
B36: DSHS/DDA Schedule A (Rev. 12/18)

Sheet B-1
A1: SCHEDULE B-1
I2: CONTRACT-RELATED HOURS AND WAGES ONLY
O3: =_M000001 -> 0
O4: PROVIDER NAME
B8: STAFF SUMMARY - TO BE SUMMITTED WITH COST REPORT
B9: COL. 1-3 | D9: COL. 4 | E9: COL. 5 | F9: COL. 6 | G9: COL. 7 | H9: COL. 8a | I9: COL. 8b | J9: COL. 8c | K9: COL. 9 | L9: COL. 10 | M9: COL. 11 | N9: COL. 12 | O9: COL. 13 | P9: COL. 14 | Q9: COL. 15 | R9: COL. 16
B10: PROVIDER SUMMARY | D10: TOTAL HOURS PER PAYROLL (Column 8c+12+13) | E10: REGULAR INSTRUCTION & SUPPORT (ISS) HOURS | F10: OVERTIME INSTRUCTION & SUPPORT (ISS) HOURS | G10: OTHER INSTRUCTION & SUPPORT (ISS) HOURS &/OR SLEEP/CALL BACK HOURS &/OR AUTHORIZED PURCHASED PROFESSIONAL SERVICE HOURS | H10: TOTAL INSTRUCTION & SUPPORT (ISS) HOURS (Col. 5-7) | I10: NON-CONTRACTED/ SSP DIRECT CARE HOURS USED FOR ALLOCATION PURPOSES | J10: TOTAL INSTRUCTION & SUPPORT (ISS) HOURS & NON-CONTRACTED/ SSP DIRECT CARE HOURS (Column 8a+8b) | K10: REGULAR ADMINISTRATIVE/ NON-ISS HOURS | L10: OVERTIME ADMINISTRATIVE/ NON-ISS HOURS | M10: OTHER ADMINISTRATIVE/ NON-ISS HOURS | N10: TOTAL ADMINISTRATIVE/ NON-ISS HOURS (Col. 9-11) | O10: PAID TIME OFF HOURS (HOLIDAYS, VACATION, SICK LEAVE) | P10: INSTRUCTION & SUPPORT (ISS) SALARIES & WAGES (INCLUDES PAID TIME OFF) - ENTER SALARY & WAGES FOR HOURS REPORTED IN COLUMN 8a & 13 (INCLUDE AUTHORIZED PURCHASED PROFESSIONAL SERVICES, LINE 7). **DO NOT INCLUDE SALARY & WAGES FOR NON-CONTRACTED/ SSP DIRECT CARE HOURS REPORTED IN COLUMN 8b | Q10: TOTAL SALARIES & WAGES - ENTER SALARY & WAGES FOR HOURS REPORTED IN COLUMNS 8a, 12, & 13. **DO NOT INCLUDE SALARY & WAGES FOR NON-CONTRACTED/ SSP DIRECT CARE HOURS REPORTED IN COLUMN 8b | R10: TOTAL REPORTABLE ADMINISTRATIVE NON-ISS SALARIES & WAGES
A11: 1 | B11: ADMINISTRATIVE AND NON-ISS STAFF ONLY | D11: =SUM(J11,N11,O11) -> 0 | H11: =SUM(E11:G11) -> 0 | J11: =SUM(H11:I11) -> 0 | K11: 0 | L11: 0 | M11: 0 | N11: =SUM(K11:M11) -> 0 | O11: 0 | P11: 0 | Q11: 0 | R11: =IF(Q11-P11<0,0,Q11-P11) -> 0
A12: 2 | B12: ISS & PROFESSIONAL SERVICES STAFF W/HOURS SPLIT BETWEEN ISS, NON-CONTRACTED/SSP AND ADMINISTRATIVE/NON-ISS (INCLUDES EMPLOYEED RN, LPN, DBT, ect.) | D12: 0 | E12: 0 | F12: 0 | G12: 0 | H12: 0 | I12: 0 | J12: 0 | K12: 0 | L12: 0 | M12: 0 | N12: =SUM(K12:M12) -> 0 | O12: 0 | P12: 0 | Q12: 0 | R12: 0
A13: 3 | B13: ISS & PROFESSIONAL SERVICES STAFF ONLY (INCLUDES EMPLOYEED RN, LPN, DBT, ect.) | D13: 0 | E13: 0 | F13: 0 | G13: 0 | H13: 0 | I13: 0 | J13: 0 | O13: 0 | P13: 0 | Q13: =P13 -> 0 | R13: 0
A14: 4 | B14: ADMINISTRATOR ONLY - Group Home | D14: 0 | E14: 0 | F14: 0 | G14: 0 | H14: 0 | I14: 0 | J14: 0 | K14: 0 | L14: 0 | M14: 0 | N14: =SUM(K14:M14) -> 0 | O14: 0 | P14: 0 | Q14: 0 | R14: 0
A15: 5 | B15: ADMINISTRATOR ONLY - Supported Living or Combined SL/GH with more than 41,600 ISS hours | D15: 0 | H15: 0 | I15: 0 | J15: 0 | K15: 0 | L15: 0 | M15: 0 | N15: =SUM(K15:M15) -> 0 | O15: 0 | P15: 0 | Q15: 0 | R15: 0
A16: 6 | B16: ADMINISTRATOR ONLY - Supported Living or Combined SL/GH with 41,600 or fewer ISS hours | D16: 0 | G16: 0 | H16: 0 | I16: 0 | J16: 0 | K16: 0 | L16: 0 | M16: 0 | N16: =SUM(K16:M16) -> 0 | O16: 0 | P16: 0 | Q16: 0 | R16: 0
A17: 7 | B17: AUTHORIZED PURCHASED DIRECT CARE (ISS) PROFESSIONAL SERVICES (NON-EMPLOYEED RN, LPN, DBT ect.) | G17: 0 | H17: 0 | J17: 0 | P17: 0
A18: 8 | B18: 1163 Training Hours for the following time period: Jan 1, 2018 - Dec 31, 2018 | E18: 0 | H18: =SUM(E18:G18) -> 0 | J18: 0
B19: TOTAL CONTRACTED ISS, NON-CONTRACTED DIRECT CARE/SSP & ADMINISTRATIVE/NON-ISS HOURS & PAYROLL | D19: =SUM(D11:D17) -> 0 | E19: =SUM(E11:E17) -> 0 | F19: =SUM(F11:F17) -> 0 | G19: 0 | H19: =SUM(H11:H17) -> 0 | I19: 0 | J19: =SUM(J11:J18)-J18 -> 0 | K19: 0 | L19: 0 | M19: 0 | N19: 0 | O19: 0 | P19: 0 | Q19: 0 | R19: 0
B23: Total should equal Sch E, Row 2(a) + 2(b) (≠1) | C23: =SUM($P$12:$P$13) -> 0 | D23: Total contracted hours should equal Sch B-2 and/or internal payroll records | E23: Total hours in column 5 & 6 should equal Sch B, Section 1, Column d | G23: Total hours should equal Sch B, Sec 1, Col (e + f) | H23: Total should equal Sch B, Sec 1, Col. (g) & should also equal Sch B-2 and/or internal payroll records | I23: Total should equal the sum of Sch B, Sec 2, Col. g, Lines E-G | J23: Total should equal Sch B, Sec 2, Col g | N23: Total should equal Sch C, Hours Section, Column "Agency Totals" & Sch B-2 and/or internal payroll records | O23: Paid time off hours are not used towards settlement but the salary & wages are part of settlement | P23: Total should equal various amounts posted to Schedule E (see far left) & should also equal Sch B-2 and/or internal payroll records & A/P documents for Purchased Professional Services | Q23: Total should equal Sch B-2 and/or internal payroll records **Does not include salary & wages for Non-Contracted Direct Care Hours reported in column 8b | R23: Total should match the sum of Sch C, Sec 4, Acct 5411, Allocated & Non-Allocated
B24: Total should equal Sch E, Sec 2, row (d) (≠2) | C24: =SUM($P$17) -> 0
B25: Total should equal Sch E, Sec 3, row (a) (≠3) | C25: =SUM($P$14) -> 0
B26: DSHS/DDA Schedule B-1 (Rev. 12/18) | C26: =IF(C23<>SUM(E!E13:H14),"≠1 ","")&(IF(C24<>SUM(E!E16:H16),"≠2 ","")&(IF(C25<>SUM(E!E23:H23),"≠3 ",""))) ->  | E26: =IF(SUM(E19:F22)<>B!H34,"≠","") ->  | G26: =IF(G19<>SUM(B!I34:J34),"≠","") ->  | H26: =IF(H19<>SUM(B!K34),"≠","") ->  | I26: =IF(I19<>SUM(B!K35:L37),"≠","") ->  | J26: =IF(J19<>_C000099,"≠","") ->  | N26: =IF(N19<>SUM('C'!E13:E28),"≠","") ->  | R26: =IF(R19<>SUM('C'!E30:E37,'C'!E48:E55),"≠","") -> 

Sheet B
A1: SCHEDULE B
K3: =_M000001 -> 0
K4: PROVIDER NAME
B8: 1 | D8: ARE MEDICAL SERVICES PURCHASED OR PROVIDED FOR DEVELOPMENTAL DISABILITIES CONTRACTS?
E9: If Yes, include cost of services for reported programs in Schedule E, line 2b for Medical Services Staff Salaries and Wages, or line 2d for Authorized Direct Care (ISS) Purchased Services.
B12: 2 | D12: PLEASE INDICATE YOUR BUSINESS STRUCTURE
B16: 3 | D16: PLEASE INDICATE THE ACCOUNTING BASIS USED:
B20: 4 | D20: ALLOCATION OF SHARED COSTS
B21: a | D21: Does your agency operate multiple programs contracted with DDA, e.g., Supported Living and Group Homes, or a combination of DDA and other contracts?
B23: b | D23: If yes to question 4a, do you allocate administrative and program overhead costs?
B25: c | D25: What is your agency's method of allocating costs?
B26: If you answered 'Yes" to questions 4a and 4b, and ISS Hours Worked are used for allocating costs, use the Schedule C, allocation section to report non-ISS/Administrative costs. If you use another allocation method or do not allocate costs, report the non-ISS/Administrative expenses on schedule C in the non-allocated sections.
B27: PAID HOURS WORKED
B28: (a) | F28: (b) | G28: (c) | H28: (d) | I28: (e) | J28: (f) | K28: (g) | M28: (h) | N28: (i)
D29: PROGRAM NAME | F29: P1 ID NUMBER | G29: PROG TYPE SL,GH, or SL/GH | H29: REG & OT ISS HOURS WORKED & PROFESSIONAL SERVICES STAFF ISS HOURS WORKED | I29: SLEEP &/OR CALL BACK HOURS | J29: ADMINISTRATOR DIRECT CARE/ISS HOURS &/OR AUTHORIZED PURCHASED PROFESSINAL SERVICE HOURS | K29: TOTAL PAID HOURS WORKED (d+e+f) | M29: ANNUAL RESIDENT DAYS | N29: AVERAGE HOURS PER RESIDENT DAY
B30: 1 | C30: A | K30: =SUM(H30:J30) -> 0 | N30: =IF(M30>0,ROUND(+K30/M30,2),0) -> 0
C31: B | K31: 0 | N31: 0
C32: C | K32: 0 | N32: 0
C33: D | K33: 0 | N33: 0
C34: Total of column (g) rows A-D (Programs Subject to Settlement) is automatically posted to Schd J Summary, line 2.** | H34: =SUM(H30:H33) -> 0 | I34: =SUM(I30:I33) -> 0 | J34: =SUM(J30:J33) -> 0 | K34: =SUM(K30:L33) -> 0 | M34: =SUM(M30:M33) -> 0
B35: 2 | C35: E | D35: SSP | G35: SSP | K35: 0 | N35: 0
C36: F | D36: OTHER | G36: OTHER | K36: 0 | N36: 0
C37: G | D37: OTHER | G37: OTHER | K37: 0 | N37: 0
C38: TOTAL OF ALL PROGRAMS (SETTLED & NON-SETTLED) | H38: =SUM(H34:H37) -> 0 | I38: =SUM(I34:I37) -> 0 | J38: =SUM(J34:J37) -> 0 | K38: =SUM(K34:L37) -> 0 | M38: =SUM(M34:M37) -> 0
B39: ** Hours associated with SSP and/or other programs not subject to settlement should be excluded from Line 2 and 3 of Schd J Summary.
B41: DSHS/DDA Schedule B (Rev. 12/18)

Sheet C
A1: SCHEDULE C
J3: =_M000001 -> 0
J4: PROVIDER NAME
F7: A | G7: B | H7: C | I7: D | J7: E | K7: F | L7: G
C8: ADMINISTRATIVE & OPERATIONS COSTS | E8: Program | F8: =_M000041 -> 0 | G8: =_M000049 -> 0 | H8: =_M000057 -> 0 | I8: =_M000065 -> 0 | J8: SSP | K8: OTHER | L8: OTHER
E9: Prov. No. | F9: =_C000040 -> 0 | G9: =_C000048 -> 0 | H9: =_C000056 -> 0 | I9: =_C000064 -> 0 | J9: =_C000072 -> 0 | K9: =_C000080 -> 0 | L9: =_C000088 -> 0
B10: 1 | C10: TOTAL PAID HOURS WORKED (From Schedule B) | E10: =SUM(F10:L10) -> 0 | F10: =_C000045 -> 0 | G10: =_C000053 -> 0 | H10: =_C000061 -> 0 | I10: =_C000069 -> 0 | J10: =_C000077 -> 0 | K10: =_C000085 -> 0 | L10: =_C000093 -> 0
B11: 2 | C11: % OF TOTAL PAID HOURS WORKED | E11: =SUM(F11:L11) -> 0 | F11: =IF($E10>0,+F10/$E10,0) -> 0 | G11: 0 | H11: 0 | I11: 0 | J11: 0 | K11: 0 | L11: 0
B12: 3 | C12: ADMIN. & OTHER NON-ISS STAFF HOURS | E12: Agency Totals | F12: HOURS
B13: Allocated | C13: ADMINISTRATOR | E13: 0 | F13: =IF($E13>0,$E13*F$11,0) -> 0 | G13: =IF($E13>0,$E13*G$11,0) -> 0 | H13: 0 | I13: 0 | J13: 0 | K13: 0 | L13: 0
C14: OWNER | E14: 0 | F14: =IF($E14>0,ROUND(+$E14*F$11,2),0) -> 0 | G14: 0 | H14: 0 | I14: 0 | J14: 0 | K14: 0 | L14: 0
C15: CHIEF EXECUTIVE | E15: 0 | F15: 0 | G15: 0 | H15: 0 | I15: 0 | J15: 0 | K15: 0 | L15: 0
C16: OTHER ADMINISTRATIVE STAFF | E16: 0 | F16: 0 | G16: 0 | H16: 0 | I16: 0 | J16: 0 | K16: 0 | L16: 0
C17: PROGRAM MANAGEMENT | E17: 0 | F17: =IF($E17>0,$E17*F$11,0) -> 0 | G17: 0 | H17: 0 | I17: 0 | J17: 0 | K17: 0 | L17: 0
C18: ACCOUNTING/BOOKKEEPING/OFFICE | E18: 0 | F18: =IF($E18>0,$E18*F$11,0) -> 0 | G18: 0 | H18: 0 | I18: 0 | J18: 0 | K18: 0 | L18: 0
C19: MAINTENANCE | E19: 0 | F19: =IF($E19>0,$E19*F$11,0) -> 0 | G19: 0 | H19: 0 | I19: 0 | J19: 0 | K19: 0 | L19: 0
C20: OTHER NON-ISS STAFF | E20: 0 | F20: =IF($E20>0,$E20*F$11,0) -> 0 | G20: 0 | H20: 0 | I20: 0 | J20: 0 | K20: 0 | L20: 0
B21: Non-Allocated | C21: ADMINISTRATOR | E21: =SUM(F21:L21) -> 0 | F21: 0 | G21: 0 | H21: 0 | I21: 0 | J21: 0 | K21: 0 | L21: 0
C22: OWNER | E22: 0 | F22: 0 | G22: 0 | H22: 0 | I22: 0 | J22: 0 | K22: 0 | L22: 0
C23: CHIEF EXECUTIVE | E23: 0 | F23: 0 | G23: 0 | H23: 0 | I23: 0 | J23: 0 | K23: 0 | L23: 0
C24: OTHER ADMINISTRATIVE STAFF | E24: 0 | F24: 0 | G24: 0 | H24: 0 | I24: 0 | J24: 0 | K24: 0 | L24: 0
C25: PROGRAM MANAGEMENT | E25: 0 | F25: 0 | G25: 0 | H25: 0 | I25: 0 | J25: 0 | K25: 0 | L25: 0
C26: ACCOUNTING/BOOKKEEPING | E26: 0 | F26: 0 | G26: 0 | H26: 0 | I26: 0 | J26: 0 | K26: 0 | L26: 0
C27: MAINTENANCE | E27: 0 | F27: 0 | G27: 0 | H27: 0 | I27: 0 | J27: 0 | K27: 0 | L27: 0
C28: OTHER NON-ISS STAFF | E28: 0 | F28: 0 | G28: 0 | H28: 0 | I28: 0 | J28: 0 | K28: 0 | L28: 0
B29: 4 | C29: ADMINISTRATIVE EXPENSE | E29: Agency Totals | F29: DOLLARS
B30: Allocated | C30: 5411 | D30: Administrator Salaries and Wages | E30: 0 | F30: =IF($E30>0,$E30*F$11,0) -> 0 | G30: =IF($E30>0,$E30*G$11,0) -> 0 | H30: 0 | I30: 0 | J30: 0 | K30: 0 | L30: 0
D31: Owner Salaries and Wages | E31: 0 | F31: =IF($E31>0,$E31*F$11,0) -> 0 | G31: 0 | H31: 0 | I31: 0 | J31: 0 | K31: 0 | L31: 0
D32: Chief Executive Salaries and Wages | E32: 0 | F32: 0 | G32: 0 | H32: 0 | I32: 0 | J32: 0 | K32: 0 | L32: 0
D33: Other Administrative Staff Salaries and Wages | E33: 0 | F33: 0 | G33: 0 | H33: 0 | I33: 0 | J33: 0 | K33: 0 | L33: 0
D34: Program Management Salaries and Wages | E34: 0 | F34: 0 | G34: 0 | H34: 0 | I34: 0 | J34: 0 | K34: 0 | L34: 0
D35: Accounting/ Bookkeeping Salaries and Wages | E35: 0 | F35: 0 | G35: 0 | H35: 0 | I35: 0 | J35: 0 | K35: 0 | L35: 0
D36: Maintenance Salaries and Wages | E36: 0 | F36: 0 | G36: 0 | H36: 0 | I36: 0 | J36: 0 | K36: 0 | L36: 0
D37: Other Non-ISS Staff Salaries and Wages | E37: 0 | F37: 0 | G37: 0 | H37: 0 | I37: 0 | J37: 0 | K37: 0 | L37: 0
C38: 5412 | D38: Administrator Benefits & PR Taxes | E38: 0 | F38: =IF($E38>0,$E38*F$11,0) -> 0 | G38: 0 | H38: 0 | I38: 0 | J38: 0 | K38: 0 | L38: 0
D39: Owner Benefits & PR Taxes | E39: 0 | F39: 0 | G39: 0 | H39: 0 | I39: 0 | J39: 0 | K39: 0 | L39: 0
D40: Chief Executive Benefits & PR Taxes | E40: 0 | F40: 0 | G40: 0 | H40: 0 | I40: 0 | J40: 0 | K40: 0 | L40: 0
D41: Other Administrative Staff Benefits & PR Taxes | E41: 0 | F41: 0 | G41: 0 | H41: 0 | I41: 0 | J41: 0 | K41: 0 | L41: 0
D42: Program Management Benefits & PR Taxes | E42: 0 | F42: 0 | G42: 0 | H42: 0 | I42: 0 | J42: 0 | K42: 0 | L42: 0
D43: Accounting/ Bookkeeping Benefits & PR Taxes | E43: 0 | F43: 0 | G43: 0 | H43: 0 | I43: 0 | J43: 0 | K43: 0 | L43: 0
D44: Maintenance Benefits & PR Taxes | E44: 0 | F44: 0 | G44: 0 | H44: 0 | I44: 0 | J44: 0 | K44: 0 | L44: 0
D45: Other Non-ISS Benefits & PR Taxes | E45: 0 | F45: 0 | G45: 0 | H45: 0 | I45: 0 | J45: 0 | K45: 0 | L45: 0
C46: 5414 | D46: Purchased Non-ISS Professional Services | E46: 0 | F46: 0 | G46: 0 | H46: 0 | I46: 0 | J46: 0 | K46: 0 | L46: 0
C47: 5417 | D47: Management Fees | E47: 0 | F47: 0 | G47: 0 | H47: 0 | I47: 0 | J47: 0 | K47: 0 | L47: 0
B48: Non-Allocated | C48: 5411 | D48: Administrator Salaries and Wages | E48: =SUM(F48:L48) -> 0 | F48: 0 | G48: 0 | H48: 0 | I48: 0 | J48: 0 | K48: 0 | L48: 0
D49: Owner Salaries and Wages | E49: =SUM(F49:L49) -> 0 | F49: 0 | G49: 0 | H49: 0 | I49: 0 | J49: 0 | K49: 0 | L49: 0
D50: Chief Executive Salaries and Wages | E50: 0 | F50: 0 | G50: 0 | H50: 0 | I50: 0 | J50: 0 | K50: 0 | L50: 0
D51: Other Administrative Staff Salaries and Wages | E51: 0 | F51: 0 | G51: 0 | H51: 0 | I51: 0 | J51: 0 | K51: 0 | L51: 0
D52: Program Management Salaries and Wages | E52: =SUM(F52:L52) -> 0 | F52: 0 | G52: 0 | H52: 0 | I52: 0 | J52: 0 | K52: 0 | L52: 0
D53: Accounting/ Bookkeeping Salaries and Wages | E53: 0 | F53: 0 | G53: 0 | H53: 0 | I53: 0 | J53: 0 | K53: 0 | L53: 0
D54: Maintenance Salaries and Wages | E54: 0 | F54: 0 | G54: 0 | H54: 0 | I54: 0 | J54: 0 | K54: 0 | L54: 0
D55: Other Non-ISS Staff Salaries and Wages | E55: 0 | F55: 0 | G55: 0 | H55: 0 | I55: 0 | J55: 0 | K55: 0 | L55: 0
C56: 5412 | D56: Administrator Benefits & PR Taxes | E56: =SUM(F56:L56) -> 0 | F56: 0 | G56: 0 | H56: 0 | I56: 0 | J56: 0 | K56: 0 | L56: 0
D57: Owner Benefits & PR Taxes | E57: =SUM(F57:L57) -> 0 | F57: 0 | G57: 0 | H57: 0 | I57: 0 | J57: 0 | K57: 0 | L57: 0
D58: Chief Executive Benefits & PR Taxes | E58: 0 | F58: 0 | G58: 0 | H58: 0 | I58: 0 | J58: 0 | K58: 0 | L58: 0
D59: Other Administrative Staff Benefits & PR Taxes | E59: 0 | F59: 0 | G59: 0 | H59: 0 | I59: 0 | J59: 0 | K59: 0 | L59: 0
D60: Program Management Benefits & PR Taxes | E60: 0 | F60: 0 | G60: 0 | H60: 0 | I60: 0 | J60: 0 | K60: 0 | L60: 0
D61: Accounting/ Bookkeeping Benefits & PR Taxes | E61: 0 | F61: 0 | G61: 0 | H61: 0 | I61: 0 | J61: 0 | K61: 0 | L61: 0
D62: Maintenance Benefits & PR Taxes | E62: 0 | F62: 0 | G62: 0 | H62: 0 | I62: 0 | J62: 0 | K62: 0 | L62: 0
D63: Other Non-ISS Benefits & PR Taxes | E63: 0 | F63: 0 | G63: 0 | H63: 0 | I63: 0 | J63: 0 | K63: 0 | L63: 0
C64: 5414 | D64: Purchased Non-ISS Professional Services | E64: =SUM(F64:L64) -> 0 | F64: 0 | G64: 0 | H64: 0 | I64: 0 | J64: 0 | K64: 0 | L64: 0
C65: 5417 | D65: Management Fees | E65: =SUM(F65:L65) -> 0 | F65: 0 | G65: 0 | H65: 0 | I65: 0 | J65: 0 | K65: 0 | L65: 0
C66: TOTAL ADMINISTRATIVE EXPENSE | E66: =SUM(E30:E65) -> 0 | F66: 0 | G66: 0 | H66: 0 | I66: 0 | J66: 0 | K66: 0 | L66: 0
B67: 5 | C67: PROGRAM OPERATIONS EXPENSE
B68: Allocated | C68: 5413 | D68: Administrative Supplies | E68: 0 | F68: =IF($E68>0,$E68*F$11,0) -> 0 | G68: =IF($E68>0,$E68*G$11,0) -> 0 | H68: 0 | I68: 0 | J68: 0 | K68: 0 | L68: 0
C69: 5516 | D69: Administrative Travel Expenses (mileage, lodging, public transportation) | E69: 0 | F69: =IF($E69>0,$E69*F$11,0) -> 0 | G69: 0 | H69: 0 | I69: 0 | J69: 0 | K69: 0 | L69: 0
C70: 5431 | D70: Advertising Expense | E70: 0 | F70: =IF($E70>0,$E70*F$11,0) -> 0 | G70: 0 | H70: 0 | I70: 0 | J70: 0 | K70: 0 | L70: 0
C71: 5426 | D71: Professional Liability Insurance | E71: 0 | F71: =IF($E71>0,$E71*F$11,0) -> 0 | G71: 0 | H71: 0 | I71: 0 | J71: 0 | K71: 0 | L71: 0
C72: 5439 | D72: Other General Admin. Expense | E72: 0 | F72: =IF($E72>0,$E72*F$11,0) -> 0 | G72: 0 | H72: 0 | I72: 0 | J72: 0 | K72: 0 | L72: 0
B73: Non-Allocated | C73: 5413 | D73: Administrative Supplies | E73: =SUM(F73:L73) -> 0 | F73: 0 | G73: 0 | H73: 0 | I73: 0 | J73: 0 | K73: 0 | L73: 0
C74: 5516 | D74: Administrative Travel Expenses (mileage, lodging, public transportation) | E74: =SUM(F74:L74) -> 0 | F74: 0 | G74: 0 | H74: 0 | I74: 0 | J74: 0 | K74: 0 | L74: 0
C75: 5431 | D75: Advertising Expense | E75: =SUM(F75:L75) -> 0 | F75: 0 | G75: 0 | H75: 0 | I75: 0 | J75: 0 | K75: 0 | L75: 0
C76: 5426 | D76: Professional Liability Insurance | E76: =SUM(F76:L76) -> 0 | F76: 0 | G76: 0 | H76: 0 | I76: 0 | J76: 0 | K76: 0 | L76: 0
C77: 5439 | D77: Other General Admin. Expense | E77: =SUM(F77:L77) -> 0 | F77: 0 | G77: 0 | H77: 0 | I77: 0 | J77: 0 | K77: 0 | L77: 0
C78: TOTAL PROGRAM OPERATIONS EXPENSE | E78: =SUM(E68:E77) -> 0 | F78: =SUM(F68:F77) -> 0 | G78: 0 | H78: 0 | I78: 0 | J78: 0 | K78: 0 | L78: 0
B79: 6 | C79: CAPITAL & PROPERTY EXPENSE
B80: Allocated | C80: 53*0 | D80: Depreciation - Land Improvements, Buildings, Building Imp., Leasehold Impr., Furn. & Equip. (Detail on Schedule F) | E80: 0 | F80: =IF($E80>0,+$E80*F$11,0) -> 0 | G80: =IF($E80>0,+$E80*G$11,0) -> 0 | H80: 0 | I80: 0 | J80: 0 | K80: 0 | L80: 0
D81: Square footage (owned buildings) | E81: 0 | F81: =IF($E81>0,+$E81*F$11,0) -> 0 | G81: 0 | H81: 0 | I81: 0 | J81: 0 | K81: 0 | L81: 0
C82: 5423 | D82: Communications Expense | E82: 0 | F82: =IF($E82>0,+$E82*F$11,0) -> 0 | G82: 0 | H82: 0 | I82: 0 | J82: 0 | K82: 0 | L82: 0
C83: 5426 | D83: Facility Insurance Expense | E83: 0 | F83: 0 | G83: 0 | H83: 0 | I83: 0 | J83: 0 | K83: 0 | L83: 0
C84: 5380 | D84: Office Rent Expense | E84: 0 | F84: 0 | G84: 0 | H84: 0 | I84: 0 | J84: 0 | K84: 0 | L84: 0
D85: Square footage (rented space) | E85: 0 | F85: 0 | G85: 0 | H85: 0 | I85: 0 | J85: 0 | K85: 0 | L85: 0
C86: 5380 | D86: Lease Payments Expense | E86: 0 | F86: 0 | G86: 0 | H86: 0 | I86: 0 | J86: 0 | K86: 0 | L86: 0
C87: 5481 | D87: Utilities Expense | E87: 0 | F87: 0 | G87: 0 | H87: 0 | I87: 0 | J87: 0 | K87: 0 | L87: 0
C88: 5483 | D88: Property Taxes | E88: 0 | F88: 0 | G88: 0 | H88: 0 | I88: 0 | J88: 0 | K88: 0 | L88: 0
C89: 5486 | D89: Minor Equipment Expense | E89: 0 | F89: 0 | G89: 0 | H89: 0 | I89: 0 | J89: 0 | K89: 0 | L89: 0
C90: 5487 | D90: Other Property Expense | E90: 0 | F90: 0 | G90: 0 | H90: 0 | I90: 0 | J90: 0 | K90: 0 | L90: 0
B91: Non-Allocated | C91: 53*0 | D91: Depreciation - Land Improvements, Buildings, Building Imp., Leasehold Impr., Furn. & Equip. (Detail on Schedule F) | E91: =SUM(F91:L91) -> 0 | F91: 0 | G91: 0 | H91: 0 | I91: 0 | J91: 0 | K91: 0 | L91: 0
D92: Square footage (owned buildings) | E92: =SUM(F92:L92) -> 0 | F92: 0 | G92: 0 | H92: 0 | I92: 0 | J92: 0 | K92: 0 | L92: 0
C93: 5423 | D93: Communications Expense | E93: 0 | F93: 0 | G93: 0 | H93: 0 | I93: 0 | J93: 0 | K93: 0 | L93: 0
C94: 5426 | D94: Facility Insurance Expense | E94: 0 | F94: 0 | G94: 0 | H94: 0 | I94: 0 | J94: 0 | K94: 0 | L94: 0
C95: 5380 | D95: Office Rent Expense | E95: =SUM(F95:L95) -> 0 | F95: 0 | G95: 0 | H95: 0 | I95: 0 | J95: 0 | K95: 0 | L95: 0
D96: Square footage (rented space) | E96: =SUM(F96:L96) -> 0 | F96: 0 | G96: 0 | H96: 0 | I96: 0 | J96: 0 | K96: 0 | L96: 0
C97: 5380 | D97: Lease Payments Expense | E97: =SUM(F97:L97) -> 0 | F97: 0 | G97: 0 | H97: 0 | I97: 0 | J97: 0 | K97: 0 | L97: 0
C98: 5481 | D98: Utilities Expense | E98: 0 | F98: 0 | G98: 0 | H98: 0 | I98: 0 | J98: 0 | K98: 0 | L98: 0
C99: 5483 | D99: Property Taxes | E99: 0 | F99: 0 | G99: 0 | H99: 0 | I99: 0 | J99: 0 | K99: 0 | L99: 0
C100: 5486 | D100: Minor Equipment Expense | E100: 0 | F100: 0 | G100: 0 | H100: 0 | I100: 0 | J100: 0 | K100: 0 | L100: 0
C101: 5487 | D101: Other Property Expense | E101: 0 | F101: 0 | G101: 0 | H101: 0 | I101: 0 | J101: 0 | K101: 0 | L101: 0
C102: TOTAL CAPTIAL & PROPERTY EXPENSE | E102: =SUM(E80,E82:E84,E86:E90,E91,E93:E95,E97:E101) -> 0 | F102: =SUM(F80,F82:F84,F86:F91,F93:F95,F97:F101) -> 0 | G102: =SUM(G80,G82:G84,G86:G91,G93:G95,G97:G101) -> 0 | H102: 0 | I102: 0 | J102: 0 | K102: 0 | L102: 0
B103: 7 | C103: INTEREST & TAX EXPENSE
B104: Allocated | C104: 5421, 5370 | D104: Working Capital, Property, Line of Credit Debt Expense (Detail on Schedule G) | E104: 0 | F104: =IF($E104>0,$E104*F$11,0) -> 0 | G104: =IF($E104>0,$E104*G$11,0) -> 0 | H104: 0 | I104: 0 | J104: 0 | K104: 0 | L104: 0
C105: 5428 | D105: Business Taxes (Does not include portion of B & O tax charged as ISS Payroll Tax) | E105: 0 | F105: =IF($E105>0,$E105*F$11,0) -> 0 | G105: 0 | H105: 0 | I105: 0 | J105: 0 | K105: 0 | L105: 0
B106: Non-Allocated | C106: 5421, 5370 | D106: Working Capital, Property, Line of Credit Debt Expense (Detail on Schedule G) | E106: =SUM(F106:L106) -> 0 | F106: 0 | G106: 0 | H106: 0 | I106: 0 | J106: 0 | K106: 0 | L106: 0
C107: 5428 | D107: Business Taxes (Does not include portion of B & O tax charged as ISS Payroll Tax) | E107: =SUM(F107:L107) -> 0 | F107: 0 | G107: 0 | H107: 0 | I107: 0 | J107: 0 | K107: 0 | L107: 0
C108: TOTAL INTEREST & TAX EXPENSE | E108: =SUM(E104:E107) -> 0 | F108: =SUM(F104:F107) -> 0 | G108: 0 | H108: 0 | I108: 0 | J108: 0 | K108: 0 | L108: 0
B109: 8 | C109: TOTALS | E109: =SUM(E66+E78+E102+E108) -> 0 | F109: =SUM(F66+F78+F102+F108) -> 0 | G109: 0 | H109: 0 | I109: 0 | J109: 0 | K109: 0 | L109: 0
F110: To Schedule E | G110: To Schedule E | H110: To Schedule E | I110: To Schedule E | J110: To Schedule E | K110: To Schedule E | L110: To Schedule E
F111: Col. A, Line 1 | G111: Col. B, Line 1 | H111: Col. C, Line 1 | I111: Col. D, Line 1 | J111: Col. E, Line 1 | K111: Col. F, Line 1 | L111: Col. G, Line 1
C112: DSHS/DDA Schedule C (Rev. 12/18)

Sheet C-Sum (hidden)
A1: SCHEDULE C SUM
J3: =_M000001 -> 0
K4: PROVIDER NAME
B8: ADMIN. & OPERATIONS COSTS | E8: Program | F8: =B!$G30 -> 0 | G8: =B!$G31 -> 0 | H8: =B!$G32 -> 0 | I8: =B!$G33 -> 0 | J8: =B!$G35 -> SSP | K8: =B!$G36 -> OTHER | L8: =B!$G37 -> OTHER
E9: Prov. No. | F9: =_C000040 -> 0 | G9: =_C000048 -> 0 | H9: =_C000056 -> 0 | I9: =_C000064 -> 0 | J9: =_C000072 -> 0 | K9: =_C000080 -> 0 | L9: =_C000088 -> 0
B10: 1 | C10: TOTAL PAID HOURS WORKED* | E10: =SUM(F10:L10) -> 0 | F10: =_C000045 -> 0 | G10: =_C000053 -> 0 | H10: =_C000061 -> 0 | I10: =_C000069 -> 0 | J10: =_C000077 -> 0 | K10: =_C000085 -> 0 | L10: =_C000093 -> 0
B11: 2 | C11: % OF TOTAL PAID HOURS WORKED | E11: =SUM(F11:L11) -> 0 | F11: =IF($E10>0,+F10/$E10,0) -> 0 | G11: 0 | H11: 0 | I11: 0 | J11: 0 | K11: 0 | L11: 0
B12: 3 | C12: ADMIN. & OTHER NON-ISS STAFF HOURS | H12: H O U R S
B13: HOURS | C13: Total | D13: ADMINISTRATOR | E13: =SUM(F13:L13) -> 0 | F13: =+'C'!F13+'C'!F21 -> 0 | G13: =+'C'!G13+'C'!G21 -> 0 | H13: =+'C'!H13+'C'!H21 -> 0 | I13: =+'C'!I13+'C'!I21 -> 0 | J13: =+'C'!J13+'C'!J21 -> 0 | K13: =+'C'!K13+'C'!K21 -> 0 | L13: =+'C'!L13+'C'!L21 -> 0
D14: OWNER | E14: 0 | F14: =+'C'!F14+'C'!F22 -> 0 | G14: =+'C'!G14+'C'!G22 -> 0 | H14: =+'C'!H14+'C'!H22 -> 0 | I14: =+'C'!I14+'C'!I22 -> 0 | J14: =+'C'!J14+'C'!J22 -> 0 | K14: =+'C'!K14+'C'!K22 -> 0 | L14: =+'C'!L14+'C'!L22 -> 0
D15: CHIEF EXECUTIVE | E15: 0 | F15: =+'C'!F15+'C'!F23 -> 0 | G15: =+'C'!G15+'C'!G23 -> 0 | H15: =+'C'!H15+'C'!H23 -> 0 | I15: =+'C'!I15+'C'!I23 -> 0 | J15: =+'C'!J15+'C'!J23 -> 0 | K15: =+'C'!K15+'C'!K23 -> 0 | L15: =+'C'!L15+'C'!L23 -> 0
D16: OTHER ADMINISTRATIVE STAFF | E16: 0 | F16: =+'C'!F16+'C'!F24 -> 0 | G16: =+'C'!G16+'C'!G24 -> 0 | H16: =+'C'!H16+'C'!H24 -> 0 | I16: =+'C'!I16+'C'!I24 -> 0 | J16: =+'C'!J16+'C'!J24 -> 0 | K16: =+'C'!K16+'C'!K24 -> 0 | L16: =+'C'!L16+'C'!L24 -> 0
D17: PROGRAM MANAGEMENT | E17: 0 | F17: =+'C'!F17+'C'!F25 -> 0 | G17: =+'C'!G17+'C'!G25 -> 0 | H17: =+'C'!H17+'C'!H25 -> 0 | I17: =+'C'!I17+'C'!I25 -> 0 | J17: =+'C'!J17+'C'!J25 -> 0 | K17: =+'C'!K17+'C'!K25 -> 0 | L17: =+'C'!L17+'C'!L25 -> 0
D18: ACCOUNTING/BOOKKEEPING | E18: 0 | F18: =+'C'!F18+'C'!F26 -> 0 | G18: =+'C'!G18+'C'!G26 -> 0 | H18: =+'C'!H18+'C'!H26 -> 0 | I18: =+'C'!I18+'C'!I26 -> 0 | J18: =+'C'!J18+'C'!J26 -> 0 | K18: =+'C'!K18+'C'!K26 -> 0 | L18: =+'C'!L18+'C'!L26 -> 0
D19: MAINTENANCE | E19: 0 | F19: =+'C'!F19+'C'!F27 -> 0 | G19: =+'C'!G19+'C'!G27 -> 0 | H19: =+'C'!H19+'C'!H27 -> 0 | I19: =+'C'!I19+'C'!I27 -> 0 | J19: =+'C'!J19+'C'!J27 -> 0 | K19: =+'C'!K19+'C'!K27 -> 0 | L19: =+'C'!L19+'C'!L27 -> 0
D20: OTHER NON-ISS STAFF | E20: 0 | F20: =+'C'!F20+'C'!F28 -> 0 | G20: =+'C'!G20+'C'!G28 -> 0 | H20: =+'C'!H20+'C'!H28 -> 0 | I20: =+'C'!I20+'C'!I28 -> 0 | J20: =+'C'!J20+'C'!J28 -> 0 | K20: =+'C'!K20+'C'!K28 -> 0 | L20: =+'C'!L20+'C'!L28 -> 0
B21: 4 | C21: ADMINISTRATIVE EXPENSE | H21: D O L L A R S
B22: Total | C22: 5411 | D22: Administrative Salaries & Wages | E22: =SUM(F22:L22) -> 0 | F22: =+'C'!F30+'C'!F48 -> 0 | G22: =+'C'!G30+'C'!G48 -> 0 | H22: =+'C'!H30+'C'!H48 -> 0 | I22: =+'C'!I30+'C'!I48 -> 0 | J22: =+'C'!J30+'C'!J48 -> 0 | K22: =+'C'!K30+'C'!K48 -> 0 | L22: =+'C'!L30+'C'!L48 -> 0
C23: 5411 | D23: Owners Salaries & Wages | E23: 0 | F23: =+'C'!F31+'C'!F49 -> 0 | G23: =+'C'!G31+'C'!G49 -> 0 | H23: =+'C'!H31+'C'!H49 -> 0 | I23: =+'C'!I31+'C'!I49 -> 0 | J23: =+'C'!J31+'C'!J49 -> 0 | K23: =+'C'!K31+'C'!K49 -> 0 | L23: =+'C'!L31+'C'!L49 -> 0
C24: 5411 | D24: Chief Exectutive Salaries & Wages | E24: 0 | F24: =+'C'!F32+'C'!F50 -> 0 | G24: =+'C'!G32+'C'!G50 -> 0 | H24: =+'C'!H32+'C'!H50 -> 0 | I24: =+'C'!I32+'C'!I50 -> 0 | J24: =+'C'!J32+'C'!J50 -> 0 | K24: =+'C'!K32+'C'!K50 -> 0 | L24: =+'C'!L32+'C'!L50 -> 0
C25: 5411 | D25: Other Administrative Staff Salaries & Wages | E25: 0 | F25: =+'C'!F33+'C'!F51 -> 0 | G25: =+'C'!G33+'C'!G51 -> 0 | H25: =+'C'!H33+'C'!H51 -> 0 | I25: =+'C'!I33+'C'!I51 -> 0 | J25: =+'C'!J33+'C'!J51 -> 0 | K25: =+'C'!K33+'C'!K51 -> 0 | L25: =+'C'!L33+'C'!L51 -> 0
C26: 5411 | D26: Program Management Salaries & Wages | E26: 0 | F26: =+'C'!F34+'C'!F52 -> 0 | G26: =+'C'!G34+'C'!G52 -> 0 | H26: =+'C'!H34+'C'!H52 -> 0 | I26: =+'C'!I34+'C'!I52 -> 0 | J26: =+'C'!J34+'C'!J52 -> 0 | K26: =+'C'!K34+'C'!K52 -> 0 | L26: =+'C'!L34+'C'!L52 -> 0
C27: 5411 | D27: Accounting/Bookkeeping Salaries & Wages | E27: 0 | F27: =+'C'!F35+'C'!F53 -> 0 | G27: =+'C'!G35+'C'!G53 -> 0 | H27: =+'C'!H35+'C'!H53 -> 0 | I27: =+'C'!I35+'C'!I53 -> 0 | J27: =+'C'!J35+'C'!J53 -> 0 | K27: =+'C'!K35+'C'!K53 -> 0 | L27: =+'C'!L35+'C'!L53 -> 0
C28: 5411 | D28: Maintenance Salaries & Wages | E28: 0 | F28: =+'C'!F36+'C'!F54 -> 0 | G28: =+'C'!G36+'C'!G54 -> 0 | H28: =+'C'!H36+'C'!H54 -> 0 | I28: =+'C'!I36+'C'!I54 -> 0 | J28: =+'C'!J36+'C'!J54 -> 0 | K28: =+'C'!K36+'C'!K54 -> 0 | L28: =+'C'!L36+'C'!L54 -> 0
C29: 5411 | D29: Other Non-ISS Staff Salaries & Wages | E29: 0 | F29: =+'C'!F37+'C'!F55 -> 0 | G29: =+'C'!G37+'C'!G55 -> 0 | H29: =+'C'!H37+'C'!H55 -> 0 | I29: =+'C'!I37+'C'!I55 -> 0 | J29: =+'C'!J37+'C'!J55 -> 0 | K29: =+'C'!K37+'C'!K55 -> 0 | L29: =+'C'!L37+'C'!L55 -> 0
C30: 5412 | D30: Administrative Benefits & PR Taxes | E30: 0 | F30: =+'C'!F38+'C'!F56 -> 0 | G30: =+'C'!G38+'C'!G56 -> 0 | H30: =+'C'!H38+'C'!H56 -> 0 | I30: =+'C'!I38+'C'!I56 -> 0 | J30: =+'C'!J38+'C'!J56 -> 0 | K30: =+'C'!K38+'C'!K56 -> 0 | L30: =+'C'!L38+'C'!L56 -> 0
C31: 5412 | D31: Owner Benefits & PR Taxes | E31: 0 | F31: =+'C'!F39+'C'!F57 -> 0 | G31: =+'C'!G39+'C'!G57 -> 0 | H31: =+'C'!H39+'C'!H57 -> 0 | I31: =+'C'!I39+'C'!I57 -> 0 | J31: =+'C'!J39+'C'!J57 -> 0 | K31: =+'C'!K39+'C'!K57 -> 0 | L31: =+'C'!L39+'C'!L57 -> 0
C32: 5412 | D32: Chief Exectutive Benefits & PR Taxes | E32: 0 | F32: =+'C'!F40+'C'!F58 -> 0 | G32: =+'C'!G40+'C'!G58 -> 0 | H32: =+'C'!H40+'C'!H58 -> 0 | I32: =+'C'!I40+'C'!I58 -> 0 | J32: =+'C'!J40+'C'!J58 -> 0 | K32: =+'C'!K40+'C'!K58 -> 0 | L32: =+'C'!L40+'C'!L58 -> 0
C33: 5412 | D33: Other Administrative Staff Benefits & PR Taxes | E33: 0 | F33: =+'C'!F41+'C'!F59 -> 0 | G33: =+'C'!G41+'C'!G59 -> 0 | H33: =+'C'!H41+'C'!H59 -> 0 | I33: =+'C'!I41+'C'!I59 -> 0 | J33: =+'C'!J41+'C'!J59 -> 0 | K33: =+'C'!K41+'C'!K59 -> 0 | L33: =+'C'!L41+'C'!L59 -> 0
C34: 5412 | D34: Program Management Benefits & PR Taxes | E34: 0 | F34: =+'C'!F42+'C'!F60 -> 0 | G34: =+'C'!G42+'C'!G60 -> 0 | H34: =+'C'!H42+'C'!H60 -> 0 | I34: =+'C'!I42+'C'!I60 -> 0 | J34: =+'C'!J42+'C'!J60 -> 0 | K34: =+'C'!K42+'C'!K60 -> 0 | L34: =+'C'!L42+'C'!L60 -> 0
C35: 5412 | D35: Accounting/Bookkeeping Benefits & PR Taxes | E35: 0 | F35: =+'C'!F43+'C'!F61 -> 0 | G35: =+'C'!G43+'C'!G61 -> 0 | H35: =+'C'!H43+'C'!H61 -> 0 | I35: =+'C'!I43+'C'!I61 -> 0 | J35: =+'C'!J43+'C'!J61 -> 0 | K35: =+'C'!K43+'C'!K61 -> 0 | L35: =+'C'!L43+'C'!L61 -> 0
C36: 5412 | D36: Maintenance Benefits & PR Taxes | E36: 0 | F36: =+'C'!F44+'C'!F62 -> 0 | G36: =+'C'!G44+'C'!G62 -> 0 | H36: =+'C'!H44+'C'!H62 -> 0 | I36: =+'C'!I44+'C'!I62 -> 0 | J36: =+'C'!J44+'C'!J62 -> 0 | K36: =+'C'!K44+'C'!K62 -> 0 | L36: =+'C'!L44+'C'!L62 -> 0
C37: 5412 | D37: Other Non-ISS Staff Benefits & PR Taxes | E37: 0 | F37: =+'C'!F45+'C'!F63 -> 0 | G37: =+'C'!G45+'C'!G63 -> 0 | H37: =+'C'!H45+'C'!H63 -> 0 | I37: =+'C'!I45+'C'!I63 -> 0 | J37: =+'C'!J45+'C'!J63 -> 0 | K37: =+'C'!K45+'C'!K63 -> 0 | L37: =+'C'!L45+'C'!L63 -> 0
C38: 5414 | D38: Purchased Professional Services | E38: 0 | F38: =+'C'!F46+'C'!F64 -> 0 | G38: =+'C'!G46+'C'!G64 -> 0 | H38: =+'C'!H46+'C'!H64 -> 0 | I38: =+'C'!I46+'C'!I64 -> 0 | J38: =+'C'!J46+'C'!J64 -> 0 | K38: =+'C'!K46+'C'!K64 -> 0 | L38: =+'C'!L46+'C'!L64 -> 0
C39: 5417 | D39: Management Fees | E39: 0 | F39: =+'C'!F47+'C'!F65 -> 0 | G39: =+'C'!G47+'C'!G65 -> 0 | H39: =+'C'!H47+'C'!H65 -> 0 | I39: =+'C'!I47+'C'!I65 -> 0 | J39: =+'C'!J47+'C'!J65 -> 0 | K39: =+'C'!K47+'C'!K65 -> 0 | L39: =+'C'!L47+'C'!L65 -> 0
C40: TOTAL ADMINISTRATIVE EXPENSE | E40: =SUM(E22:E39) -> 0 | F40: 0 | G40: 0 | H40: 0 | I40: 0 | J40: 0 | K40: 0 | L40: 0
B41: 5 | C41: PROGRAM OPERATIONS EXPENSE
B42: Total | C42: 5413 | D42: Administrative Supplies | E42: =SUM(F42:L42) -> 0 | F42: =+'C'!F68+'C'!F73 -> 0 | G42: =+'C'!G68+'C'!G73 -> 0 | H42: =+'C'!H68+'C'!H73 -> 0 | I42: =+'C'!I68+'C'!I73 -> 0 | J42: =+'C'!J68+'C'!J73 -> 0 | K42: =+'C'!K68+'C'!K73 -> 0 | L42: =+'C'!L68+'C'!L73 -> 0
C43: 5516 | D43: Administrative Travel Expenses (mileage, lodging, public transportation) | E43: =SUM(F43:L43) -> 0 | F43: =+'C'!F69+'C'!F74 -> 0 | G43: =+'C'!G69+'C'!G74 -> 0 | H43: =+'C'!H69+'C'!H74 -> 0 | I43: =+'C'!I69+'C'!I74 -> 0 | J43: =+'C'!J69+'C'!J74 -> 0 | K43: =+'C'!K69+'C'!K74 -> 0 | L43: =+'C'!L69+'C'!L74 -> 0
C44: 5431 | D44: Advertising Expense | E44: =SUM(F44:L44) -> 0 | F44: =+'C'!F70+'C'!F75 -> 0 | G44: =+'C'!G70+'C'!G75 -> 0 | H44: =+'C'!H70+'C'!H75 -> 0 | I44: =+'C'!I70+'C'!I75 -> 0 | J44: =+'C'!J70+'C'!J75 -> 0 | K44: =+'C'!K70+'C'!K75 -> 0 | L44: =+'C'!L70+'C'!L75 -> 0
C45: 5426 | D45: Professional Liability Insurance | E45: =SUM(F45:L45) -> 0 | F45: =+'C'!F71+'C'!F76 -> 0 | G45: =+'C'!G71+'C'!G76 -> 0 | H45: =+'C'!H71+'C'!H76 -> 0 | I45: =+'C'!I71+'C'!I76 -> 0 | J45: =+'C'!J71+'C'!J76 -> 0 | K45: =+'C'!K71+'C'!K76 -> 0 | L45: =+'C'!L71+'C'!L76 -> 0
C46: 5439 | D46: Other General Admin. Expense | E46: =SUM(F46:L46) -> 0 | F46: =+'C'!F72+'C'!F77 -> 0 | G46: =+'C'!G72+'C'!G77 -> 0 | H46: =+'C'!H72+'C'!H77 -> 0 | I46: =+'C'!I72+'C'!I77 -> 0 | J46: =+'C'!J72+'C'!J77 -> 0 | K46: =+'C'!K72+'C'!K77 -> 0 | L46: =+'C'!L72+'C'!L77 -> 0
C47: TOTAL PROGRAM OPERATIONS EXPENSE | E47: =SUM(E42:E46) -> 0 | F47: 0 | G47: 0 | H47: 0 | I47: 0 | J47: 0 | K47: 0 | L47: 0
B48: 6 | C48: CAPITAL & PROPERTY EXPENSE
B49: Total | C49: 53*0 | D49: Depreciation - Land Improvements, Buildings, Building Imp., Leasehold Impr., Furn. & Equip. (Detail on Schedule F) | E49: =SUM(F49:L49) -> 0 | F49: =+'C'!F80+'C'!F91 -> 0 | G49: =+'C'!G80+'C'!G91 -> 0 | H49: =+'C'!H80+'C'!H91 -> 0 | I49: =+'C'!I80+'C'!I91 -> 0 | J49: =+'C'!J80+'C'!J91 -> 0 | K49: =+'C'!K80+'C'!K91 -> 0 | L49: =+'C'!L80+'C'!L91 -> 0
D50: Square Footage | E50: 0 | F50: =+'C'!F81+'C'!F92 -> 0 | G50: =+'C'!G81+'C'!G92 -> 0 | H50: =+'C'!H81+'C'!H92 -> 0 | I50: =+'C'!I81+'C'!I92 -> 0 | J50: =+'C'!J81+'C'!J92 -> 0 | K50: =+'C'!K81+'C'!K92 -> 0 | L50: =+'C'!L81+'C'!L92 -> 0
C51: 5423 | D51: Communications Expense | E51: 0 | F51: =+'C'!F82+'C'!F93 -> 0 | G51: =+'C'!G82+'C'!G93 -> 0 | H51: =+'C'!H82+'C'!H93 -> 0 | I51: =+'C'!I82+'C'!I93 -> 0 | J51: =+'C'!J82+'C'!J93 -> 0 | K51: =+'C'!K82+'C'!K93 -> 0 | L51: =+'C'!L82+'C'!L93 -> 0
C52: 5426 | D52: Facility Insurance Expense | E52: 0 | F52: =+'C'!F83+'C'!F94 -> 0 | G52: =+'C'!G83+'C'!G94 -> 0 | H52: =+'C'!H83+'C'!H94 -> 0 | I52: =+'C'!I83+'C'!I94 -> 0 | J52: =+'C'!J83+'C'!J94 -> 0 | K52: =+'C'!K83+'C'!K94 -> 0 | L52: =+'C'!L83+'C'!L94 -> 0
C53: 5380 | D53: Office Rent Expense | E53: 0 | F53: =+'C'!F84+'C'!F95 -> 0 | G53: =+'C'!G84+'C'!G95 -> 0 | H53: =+'C'!H84+'C'!H95 -> 0 | I53: =+'C'!I84+'C'!I95 -> 0 | J53: =+'C'!J84+'C'!J95 -> 0 | K53: =+'C'!K84+'C'!K95 -> 0 | L53: =+'C'!L84+'C'!L95 -> 0
D54: Square Footage | E54: =SUM(F54:L54) -> 0 | F54: =+'C'!F85+'C'!F96 -> 0 | G54: =+'C'!G85+'C'!G96 -> 0 | H54: =+'C'!H85+'C'!H96 -> 0 | I54: =+'C'!I85+'C'!I96 -> 0 | J54: =+'C'!J85+'C'!J96 -> 0 | K54: =+'C'!K85+'C'!K96 -> 0 | L54: =+'C'!L85+'C'!L96 -> 0
C55: 5380 | D55: Lease Payments Expense | E55: 0 | F55: =+'C'!F86+'C'!F97 -> 0 | G55: =+'C'!G86+'C'!G97 -> 0 | H55: =+'C'!H86+'C'!H97 -> 0 | I55: =+'C'!I86+'C'!I97 -> 0 | J55: =+'C'!J86+'C'!J97 -> 0 | K55: =+'C'!K86+'C'!K97 -> 0 | L55: =+'C'!L86+'C'!L97 -> 0
C56: 5481 | D56: Utilities Expense | E56: 0 | F56: =+'C'!F87+'C'!F98 -> 0 | G56: =+'C'!G87+'C'!G98 -> 0 | H56: =+'C'!H87+'C'!H98 -> 0 | I56: =+'C'!I87+'C'!I98 -> 0 | J56: =+'C'!J87+'C'!J98 -> 0 | K56: =+'C'!K87+'C'!K98 -> 0 | L56: =+'C'!L87+'C'!L98 -> 0
C57: 5483 | D57: Property Taxes | E57: 0 | F57: =+'C'!F88+'C'!F99 -> 0 | G57: =+'C'!G88+'C'!G99 -> 0 | H57: =+'C'!H88+'C'!H99 -> 0 | I57: =+'C'!I88+'C'!I99 -> 0 | J57: =+'C'!J88+'C'!J99 -> 0 | K57: =+'C'!K88+'C'!K99 -> 0 | L57: =+'C'!L88+'C'!L99 -> 0
C58: 5486 | D58: Minor Equipment Expense | E58: 0 | F58: =+'C'!F89+'C'!F100 -> 0 | G58: =+'C'!G89+'C'!G100 -> 0 | H58: =+'C'!H89+'C'!H100 -> 0 | I58: =+'C'!I89+'C'!I100 -> 0 | J58: =+'C'!J89+'C'!J100 -> 0 | K58: =+'C'!K89+'C'!K100 -> 0 | L58: =+'C'!L89+'C'!L100 -> 0
C59: 5487 | D59: Other Property Expense | E59: 0 | F59: =+'C'!F90+'C'!F101 -> 0 | G59: =+'C'!G90+'C'!G101 -> 0 | H59: =+'C'!H90+'C'!H101 -> 0 | I59: =+'C'!I90+'C'!I101 -> 0 | J59: =+'C'!J90+'C'!J101 -> 0 | K59: =+'C'!K90+'C'!K101 -> 0 | L59: =+'C'!L90+'C'!L101 -> 0
C60: TOTAL CAPITAL & PROPERTY EXPENSE | E60: =SUM(E49,E51:E53,E55:E59) -> 0 | F60: =SUM(F49,F51:F53,F55:F59) -> 0 | G60: =SUM(G49,G51:G53,G55:G59) -> 0 | H60: 0 | I60: 0 | J60: 0 | K60: 0 | L60: 0
B61: 7 | C61: INTEREST & TAX EXPENSE
B62: Total | C62: 5421, 5370 | D62: Working Capital, Property, Line of Credit Debt Expense (Detail on Schedule G) | E62: =SUM(F62:L62) -> 0 | F62: =+'C'!F104+'C'!F106 -> 0 | G62: =+'C'!G104+'C'!G106 -> 0 | H62: =+'C'!H104+'C'!H106 -> 0 | I62: =+'C'!I104+'C'!I106 -> 0 | J62: =+'C'!J104+'C'!J106 -> 0 | K62: =+'C'!K104+'C'!K106 -> 0 | L62: =+'C'!L104+'C'!L106 -> 0
C63: 5428 | D63: Business Taxes (Does not include portion of B & O tax charged as ISS Payroll Tax) | E63: =SUM(F63:L63) -> 0 | F63: =+'C'!F105+'C'!F107 -> 0 | G63: =+'C'!G105+'C'!G107 -> 0 | H63: =+'C'!H105+'C'!H107 -> 0 | I63: =+'C'!I105+'C'!I107 -> 0 | J63: =+'C'!J105+'C'!J107 -> 0 | K63: =+'C'!K105+'C'!K107 -> 0 | L63: =+'C'!L105+'C'!L107 -> 0
C64: TOTAL INTEREST & TAX EXPENSE | E64: =SUM(E62:E63) -> 0 | F64: 0 | G64: 0 | H64: 0 | I64: 0 | J64: 0 | K64: 0 | L64: 0
B65: 8 | C65: TOTALS | E65: =SUM(E40+E47+E60+E64) -> 0 | F65: =SUM(F40+F47+F60+F64) -> 0 | G65: =SUM(G40+G47+G60+G64) -> 0 | H65: 0 | I65: 0 | J65: 0 | K65: 0 | L65: 0
F66: To Schedule E | G66: To Schedule E | H66: To Schedule E | I66: To Schedule E | J66: To Schedule E | K66: To Schedule E | L66: To Schedule E
F67: Col. A, Line 1 | G67: Col. B, Line 1 | H67: Col. C, Line 1 | I67: Col. D, Line 1 | J67: Col. E, Line 1 | K67: Col. F, Line 1 | L67: Col. G, Line 1
B68: DSHS/DDA Schedule C-Sum (Rev. 2/15) | E68: *From Schedule B

Sheet E
A1: SCHEDULE E
I3: =_M000001 -> 0
I4: PROVIDER NAME
E6: A | F6: B | G6: C | H6: D | I6: E | J6: F | K6: G
E7: PROGRAMS
E8: =B!$G30 -> 0 | F8: =B!$G31 -> 0 | G8: =B!$G32 -> 0 | H8: =B!$G33 -> 0 | I8: =B!$G35 -> SSP | J8: =B!$G36 -> OTHER | K8: =B!$G37 -> OTHER
B9: TOTAL PROGRAM COSTS | E9: PROVIDER NUMBER
D10: TOTALS | E10: =_C000040 -> 0 | F10: =_C000048 -> 0 | G10: =_C000056 -> 0 | H10: =_C000064 -> 0 | I10: =_C000072 -> 0 | J10: =_C000080 -> 0 | K10: =_C000088 -> 0
A11: 1 | B11: ALLOCATED EXPENSES (From Schedule C) | D11: =SUM(E11:K11) -> 0 | E11: =+'C'!F109 -> 0 | F11: =+'C'!G109 -> 0 | G11: =+'C'!H109 -> 0 | H11: =+'C'!I109 -> 0 | I11: =+'C'!J109 -> 0 | J11: =+'C'!K109 -> 0 | K11: =+'C'!L109 -> 0
A12: 2 | B12: DIRECT CARE STAFF COMPENSATION
A13: a | B13: 5611 | C13: Direct Staff Salaries and Wages (include paid time off) | D13: =SUM(E13:K13) -> 0 | E13: 0 | F13: 0 | G13: 0 | H13: 0 | I13: 0 | J13: 0 | K13: 0
A14: b | B14: 5611 | C14: Medical Services Staff Salaries and Wages (include paid time off) | D14: =SUM(E14:K14) -> 0 | E14: 0 | F14: 0 | G14: 0 | H14: 0 | I14: 0 | J14: 0 | K14: 0
A15: c | B15: 5612 | C15: ISS/Direct Care & Professional Svs Staff Taxable & Non-taxable Fringe Benefits (as described by the IRS) and Payroll Taxes **Note: Paid Time Off is included on line 2a & 2b - not here | D15: =SUM(E15:K15) -> 0 | E15: 0 | F15: 0 | G15: 0 | H15: 0 | I15: 0 | J15: 0 | K15: 0
A16: d | B16: 5614 | C16: Authorized Purchased Direct Care (ISS) Professional Services | D16: =SUM(E16:K16) -> 0 | E16: 0 | F16: 0 | G16: 0 | H16: 0 | I16: 0 | J16: 0 | K16: 0
A17: e | B17: 5612 | C17: Staff Lodging Expenses - SL Only (cost of primary dwelling for ISS personnel paid for by the agency as part of their compensation package) | D17: =SUM(E17:K17) -> 0 | E17: 0 | F17: 0 | G17: 0 | H17: 0 | I17: 0 | J17: 0 | K17: 0
A18: f | B18: 5425 | C18: Less 1163 Training Hours Times the Average Benchmark Rate *January - December 31, 2018 (MSA $18.43, Non-MSA $18.12, King $19.03, & MSA/Non-MSA $18.28) | D18: =VLOOKUP($I$3,Lists!A2:G138,6)*-'B-1'!E18 ->  | E18: =$D$18*_C000856/SUM(E11:H11) ->  | F18: =$D$18*_C000857/SUM(E11:H11) ->  | G18: =$D$18*_C000858/SUM(E11:H11) ->  | H18: =$D$18*_C000859/SUM(E11:H11) ->  | I18: 0 | J18: 0 | K18: 0
B19: TOTAL DIRECT CARE STAFF COMPENSATION FOR PROGRAMS SUBJECT TO SETTLEMENT | D19: =SUM(D13:D17) -> 0 | E19: 0 | F19: 0 | G19: 0 | H19: 0 | I19: 0 | J19: 0 | K19: 0
A20: g | B20: N/A | C20: Direct Care Compensation for programs notsubject to settlement (SSP & Non-Contracted) | D20: =SUM(E20:K20) -> 0 | E20: 0 | F20: 0 | G20: 0 | H20: 0 | I20: 0 | J20: 0 | K20: 0
B21: TOTAL CONTRACTED & NON-CONTRACTED DIRECT CARE STAFF COMPENSATION | D21: =SUM(D19:D20) -> 0 | E21: =SUM(E19:E20) -> 0 | F21: 0 | G21: 0 | H21: 0 | I21: 0 | J21: 0 | K21: 0
A22: 3 | B22: ADMINISTRATOR ISS/DIRECT CARE COMPENSATION - GROUP HOMES ONLY
A23: a | B23: 5611 | C23: Administrator ISS/Direct Care Salaries & Wages (includes paid time off) | D23: =SUM(E23:K23) -> 0 | E23: 0 | F23: 0 | G23: 0 | H23: 0 | I23: 0 | J23: 0 | K23: 0
A24: b | B24: 5612 | C24: Administrator ISS/Direct Care Fringe Benefits (as described by the IRS) & PR Taxes **Note: Paid Time Off is included on line 3a - not here | D24: =SUM(E24:K24) -> 0 | E24: 0 | F24: 0 | G24: 0 | H24: 0 | I24: 0 | J24: 0 | K24: 0
B25: TOTAL ADMINISTRATOR ISS/DIRECT CARE COMPENSATION | D25: =SUM(D23:D24) -> 0 | E25: =SUM(E23:E24) -> 0 | F25: 0 | G25: 0 | H25: 0 | I25: 0 | J25: 0 | K25: 0
A26: 4 | B26: OTHER CLIENT RELATED EXPENSES
A27: a | B27: 5110 | C27: Overnight Staff Coverage Lodging Expenses (housing units provided for on-duty staff - not primary dwelling for staff): Not ISS | D27: =SUM(E27:K27) -> 0 | E27: 0 | F27: 0 | G27: 0 | H27: 0 | I27: 0 | J27: 0 | K27: 0
A28: b | B28: 5211 | C28: Food Costs - Resident (Group Homes primarily) | D28: 0 | E28: 0 | F28: 0 | G28: 0 | H28: 0 | I28: 0 | J28: 0 | K28: 0
A29: c | B29: 5212 | C29: Food Costs - Staff | D29: 0 | E29: 0 | F29: 0 | G29: 0 | H29: 0 | I29: 0 | J29: 0 | K29: 0
A30: d | B30: 5425 | C30: Education and In-Service Training & Supplies | D30: 0 | E30: 0 | F30: 0 | G30: 0 | H30: 0 | I30: 0 | J30: 0 | K30: 0
A31: e | B31: 5435 | C31: Activities and Habilitative Supplies & Other Expenses | D31: 0 | E31: 0 | F31: 0 | G31: 0 | H31: 0 | I31: 0 | J31: 0 | K31: 0
A32: f | B32: 5435 | C32: Nursing Supplies Expense | D32: 0 | E32: 0 | F32: 0 | G32: 0 | H32: 0 | I32: 0 | J32: 0 | K32: 0
B33: TRANSPORTATION EXPENSE
A34: g | B34: 5516 | C34: Staff Mileage Reimbursement | D34: =SUM(E34:K34) -> 0 | E34: 0 | F34: 0 | G34: 0 | H34: 0 | I34: 0 | J34: 0 | K34: 0
A35: h | B35: 5517 | C35: All Other Client Transportation Expense (Agency Vehicle Fuel, Maint., Depreciation; Public Trans. Etc.) | D35: =SUM(E35:K35) -> 0 | E35: 0 | F35: 0 | G35: 0 | H35: 0 | I35: 0 | J35: 0 | K35: 0
A36: i | B36: N/A | C36: Client Transportation Mileage on Staff Owned Vehicles (miles driven to provide transportation for clients per mileage log) | D36: =SUM(E36:K36) -> 0 | E36: 0 | F36: 0 | G36: 0 | H36: 0 | I36: 0 | J36: 0 | K36: 0
A37: j | B37: N/A | C37: Client Transportation Mileage on Agency Owned Vehicles (miles driven to provide transportation for clients per mileage log) | D37: =SUM(E37:K37) -> 0 | E37: 0 | F37: 0 | G37: 0 | H37: 0 | I37: 0 | J37: 0 | K37: 0
B38: MAINTENANCE/ LAUNDRY/ HOUSEKEEPING/ DIETARY
A39: k | B39: 54*1 | C39: Salaries and Wages | D39: =SUM(E39:K39) -> 0 | E39: 0 | F39: 0 | G39: 0 | H39: 0 | I39: 0 | J39: 0 | K39: 0
A40: l | B40: 54*2 | C40: Fringe Benefits and Payroll Taxes | D40: 0 | E40: 0 | F40: 0 | G40: 0 | H40: 0 | I40: 0 | J40: 0 | K40: 0
A41: m | B41: 54*3 | C41: Supplies & Materials | D41: 0 | E41: 0 | F41: 0 | G41: 0 | H41: 0 | I41: 0 | J41: 0 | K41: 0
A42: n | B42: 54*4 | C42: Purchased Services | D42: 0 | E42: 0 | F42: 0 | G42: 0 | H42: 0 | I42: 0 | J42: 0 | K42: 0
B43: TOTAL OTHER RESIDENT RELATED EXPENSE | D43: 0 | E43: =SUM(E27:E35,E39:E42) -> 0 | F43: =SUM(F27:F35,F39:F42) -> 0 | G43: 0 | H43: 0 | I43: 0 | J43: 0 | K43: 0
A44: 5 | B44: TOTALS (Lines 1 - 5) | D44: =SUM(E44:K44) -> 0 | E44: =+E11+E21+E25+E43 -> 0 | F44: =+F11+F21+F25+F43 -> 0 | G44: 0 | H44: 0 | I44: 0 | J44: 0 | K44: 0
A45: 6 | B45: PAID HOURS WORKED (From Schedule B) | D45: 0 | E45: =_C000045 -> 0 | F45: =_C000053 -> 0 | G45: =_C000061 -> 0 | H45: =_C000069 -> 0 | I45: =_C000077 -> 0 | J45: =_C000085 -> 0 | K45: =_C000093 -> 0
A46: 7a | B46: COST PER HOUR - Non-ISS/Administrative Costs | D46: =ROUND(+D11/D45,2) ->  | E46: =IF(E45>0,ROUND(+E11/E45,2),0) -> 0 | F46: 0 | G46: 0 | H46: 0 | I46: 0 | J46: 0 | K46: 0
A47: 7b | B47: COST PER HOUR - ISS/Direct Care & Client Related Costs | D47: =+D48-D46 ->  | E47: =+E48-E46 -> 0 | F47: 0 | G47: 0 | H47: 0 | I47: 0 | J47: 0 | K47: 0
A48: 7c | B48: COST PER HOUR - Total Program (ISS&Admin) | D48: =ROUND(+D44/D45,2) ->  | E48: =IF(E45>0,ROUND(+E44/E45,2),0) -> 0 | F48: 0 | G48: 0 | H48: 0 | I48: 0 | J48: 0 | K48: 0
A49: DSHS/DDA Schedule E (Rev. 12/18)

Sheet F
A1: SCHEDULE F
I3: =_M000001 -> 0
I4: PROVIDER NAME
C7: A | D7: B | E7: C | F7: D | G7: E | H7: F | I7: G | J7: H | K7: I
C8: LAND | D8: LAND | E8: BUILDINGS | F8: BUILDING | G8: LEASEHOLD | H8: FURNITURE AND | K8: VEHICLES
D9: IMPROVEMENTS | F9: IMPROVEMENTS | G9: IMPROVEMENTS | H9: EQUIPMENT
C10: TOTAL PROPERTY AND RELATED ASSETS
A11: 1 | B11: BEGINNING BALANCE | C11: 0 | D11: 0 | E11: 0 | F11: 0 | G11: 0 | H11: 0 | I11: 0 | J11: 0 | K11: 0
A12: 2 | B12: ASSET ADDITIONS | C12: 0 | D12: 0 | E12: 0 | F12: 0 | G12: 0 | H12: 0 | I12: 0 | J12: 0 | K12: 0
A13: 3 | B13: ASSET RETIREMENTS | C13: 0 | D13: 0 | E13: 0 | F13: 0 | G13: 0 | H13: 0 | I13: 0 | J13: 0 | K13: 0
A14: 4 | B14: BALANCE AT END OF PERIOD | C14: =+C11+C12-C13 -> 0 | D14: 0 | E14: 0 | F14: 0 | G14: 0 | H14: 0 | I14: =+I11+I12-I13 -> 0 | J14: =+J11+J12-J13 -> 0 | K14: 0
A15: 5 | B15: ADJUSTMENTS/ NON-REIMBURSABLE | C15: 0 | D15: 0 | E15: 0 | F15: 0 | G15: 0 | H15: 0 | I15: 0 | J15: 0 | K15: 0
A16: 6 | B16: TOTAL ALLOWABLE PROPERTY AND RELATED ASSETS | C16: =+C14+C15 -> 0 | D16: 0 | E16: 0 | F16: 0 | G16: 0 | H16: 0 | I16: =+I14+I15 -> 0 | J16: =+J14+J15 -> 0 | K16: 0
C17: DEPRECIATION EXPENSE
A18: 7 | B18: DEPRECIATION METHOD
A19: 8 | B19: LIFE | D19: 0 | E19: 0 | F19: 0 | G19: 0 | H19: 0 | I19: 0 | J19: 0 | K19: 0
A20: 9 | B20: SALVAGE VALUE | D20: 0 | E20: 0 | F20: 0 | G20: 0 | H20: 0 | I20: 0 | J20: 0 | K20: 0
A21: 10 | B21: CURRENT PERIOD DEPRECIATION EXP. (To Schedule C or E) | D21: 0 | E21: 0 | F21: 0 | G21: 0 | H21: 0 | I21: 0 | J21: 0 | K21: 0
C22: DEPRECIATION BALANCE
A23: 11 | B23: BALANCE AT BEGINNING OF PERIOD | D23: 0 | E23: 0 | F23: 0 | G23: 0 | H23: 0 | I23: 0 | J23: 0 | K23: 0
A24: 12 | B24: CURRENT PERIOD DEPRECIATION EXP. | D24: =+D21 -> 0 | E24: 0 | F24: 0 | G24: 0 | H24: 0 | I24: =+I21 -> 0 | J24: =+J21 -> 0 | K24: 0
A25: 13 | B25: ACCUM. DEPREC. FOR RETIREMENTS | D25: 0 | E25: 0 | F25: 0 | G25: 0 | H25: 0 | I25: 0 | J25: 0 | K25: 0
A26: 14 | B26: BALANCE AT END OF PERIOD | D26: =SUM(D23:D25) -> 0 | E26: 0 | F26: 0 | G26: 0 | H26: 0 | I26: =SUM(I23:I25) -> 0 | J26: =SUM(J23:J25) -> 0 | K26: 0
A27: 15 | B27: EXPLANATION OF RETIREMENTS AND ADJUSTMENTS:
A41: DSHS/DDA Schedule F (Rev. 12/18)

Sheet G
A1: SCHEDULE G
I3: =_M000001 -> 0
I4: PROVIDER NAME
B8: A | C8: B | D8: C | E8: D | F8: E | G8: F | H8: G | I8: H | J8: I | K8: J
B9: DATE of LOAN | C9: CREDITOR | D9: PURPOSE and SECURITY | E9: ORIGINAL TERM OF LOAN | F9: ANNUAL INTEREST RATE | I9: REPORT PERIOD | K9: BALANCE at END of PERIOD
H10: BALANCE at BEGINNING of PERIOD | I10: PAYMENTS
G11: LOAN | I11: PRINCIPLE | J11: INTEREST
A12: 1 | B12: WORKING CAPITAL EXPENSE
F13: 0 | G13: 0 | H13: 0 | I13: 0 | J13: 0 | K13: =+H13-I13 -> 0
F14: 0 | G14: 0 | H14: 0 | I14: 0 | J14: 0 | K14: 0
F15: 0 | G15: 0 | H15: 0 | I15: 0 | J15: 0 | K15: 0
F16: 0 | G16: 0 | H16: 0 | I16: 0 | J16: 0 | K16: 0
F17: 0 | G17: 0 | H17: 0 | I17: 0 | J17: 0 | K17: 0
F18: 0 | G18: 0 | H18: 0 | I18: 0 | J18: 0 | K18: 0
F19: 0 | G19: 0 | H19: 0 | I19: 0 | J19: 0 | K19: 0
F20: 0 | G20: 0 | H20: 0 | I20: 0 | J20: 0 | K20: 0
B21: TOTAL INTEREST EXPENSE ON WORKING CAPITAL FOR THE PERIOD | J21: =SUM(J13:J20) -> 0
A22: 2 | B22: PROPERTY AND OTHER RELATED DEBT EXPENSE
F23: 0 | G23: 0 | H23: 0 | I23: 0 | J23: 0 | K23: =+H23-I23 -> 0
F24: 0 | G24: 0 | H24: 0 | I24: 0 | J24: 0 | K24: 0
F25: 0 | G25: 0 | H25: 0 | I25: 0 | J25: 0 | K25: 0
F26: 0 | G26: 0 | H26: 0 | I26: 0 | J26: 0 | K26: 0
F27: 0 | G27: 0 | H27: 0 | I27: 0 | J27: 0 | K27: 0
F28: 0 | G28: 0 | H28: 0 | I28: 0 | J28: 0 | K28: 0
F29: 0 | G29: 0 | H29: 0 | I29: 0 | J29: 0 | K29: 0
F30: 0 | G30: 0 | H30: 0 | I30: 0 | J30: 0 | K30: 0
F31: 0 | G31: 0 | H31: 0 | I31: 0 | J31: 0 | K31: 0
B32: TOTAL INTEREST ON PROPERTY AND OTHER RELATED FOR THE PERIOD | J32: =SUM(J23:J31) -> 0
A33: 3 | B33: VEHICLE DEBT EXPENSE
F34: 0 | G34: 0 | H34: 0 | I34: 0 | J34: 0 | K34: =+H34-I34 -> 0
F35: 0 | G35: 0 | H35: 0 | I35: 0 | J35: 0 | K35: 0
F36: 0 | G36: 0 | H36: 0 | I36: 0 | J36: 0 | K36: 0
F37: 0 | G37: 0 | H37: 0 | I37: 0 | J37: 0 | K37: 0
F38: 0 | G38: 0 | H38: 0 | I38: 0 | J38: 0 | K38: 0
F39: 0 | G39: 0 | H39: 0 | I39: 0 | J39: 0 | K39: 0
F40: 0 | G40: 0 | H40: 0 | I40: 0 | J40: 0 | K40: 0
F41: 0 | G41: 0 | H41: 0 | I41: 0 | J41: 0 | K41: 0
B42: TOTAL INTEREST EXPENSE ON VEHICLES FOR THE PERIOD | J42: =SUM(J34:J41) -> 0
A43: 4 | B43: NOTES:
A50: DSHS/DDA SCHEDULE G (Rev. 12/18)

Sheet H
A1: SCHEDULE H
I3: =_M000001 -> 0
I4: PROVIDER NAME
E6: A | F6: B | G6: C | H6: D | I6: E | J6: F | K6: G
H7: PROGRAMS
E8: =_M000041 -> 0 | F8: =_M000049 -> 0 | G8: =_M000057 -> 0 | H8: =_M000065 -> 0 | I8: =_M000073 -> SSP | J8: =_M000081 -> OTHER | K8: =_M000089 -> OTHER
A9: RESIDENTIAL SERVICES REVENUE | D9: TOTALS | E9: =_C000040 -> 0 | F9: =_C000048 -> 0 | G9: =_C000056 -> 0 | H9: =_C000064 -> 0 | I9: =_C000072 -> 0 | J9: =_C000080 -> 0 | K9: =_C000088 -> 0
A10: REVENUE FOR SERVICES
A11: 1 | B11: 4150 | C11: State Payments/Reimbursements for ISS/DSHS Clients (ISS,Admin, & Trans) | D11: =SUM(E11:K11) -> 0 | E11: 0 | F11: 0 | G11: 0 | H11: 0 | I11: 0 | J11: 0 | K11: 0
A12: =+A11+1 -> 2 | B12: 4160 | C12: DSHS Client Participation | D12: =SUM(E12:K12) -> 0 | E12: 0 | F12: 0 | G12: 0 | H12: 0 | I12: 0 | J12: 0 | K12: 0
A13: =+A12+1 -> 3 | B13: 4150 | C13: Prior Years Settlements Deducted from State Payments | D13: =SUM(E13:K13) -> 0 | E13: 0 | F13: 0 | G13: 0 | H13: 0 | I13: 0 | J13: 0 | K13: 0
A14: 4 | B14: 4130 | C14: Non DSHS Client Payments | D14: =SUM(E14:K14) -> 0 | E14: 0 | F14: 0 | G14: 0 | H14: 0 | I14: 0 | J14: 0 | K14: 0
A15: =+A14+1 -> 5 | B15: 4140 | C15: Other Revenue (Detail on Schedule L, except for SSP Revenue listed in Column E) | D15: =SUM(E15:K15) -> 0 | E15: 0 | F15: 0 | G15: 0 | H15: 0 | I15: 0 | J15: 0 | K15: 0
A16: =+A15+1 -> 6 | C16: TOTAL SERVICES REVENUE | D16: =SUM(D11:D15) -> 0 | E16: =SUM(E11:E15) -> 0 | F16: 0 | G16: 0 | H16: 0 | I16: 0 | J16: 0 | K16: 0
A17: OTHER OPERATING REVENUES
A18: =+A16+1 -> 7 | B18: 4290 | C18: Summer Programs | D18: =SUM(E18:K18) -> 0 | E18: 0 | F18: 0 | G18: 0 | H18: 0 | I18: 0 | J18: 0 | K18: 0
A19: =+A18+1 -> 8 | B19: 4150 | C19: Client Evaluation | D19: =SUM(E19:K19) -> 0 | E19: 0 | F19: 0 | G19: 0 | H19: 0 | I19: 0 | J19: 0 | K19: 0
A20: =+A19+1 -> 9 | B20: 4140 | C20: Other (Detail on Schedule L) | D20: =SUM(E20:K20) -> 0 | E20: 0 | F20: 0 | G20: 0 | H20: 0 | I20: 0 | J20: 0 | K20: 0
A21: =+A20+1 -> 10 | B21: 4140 | C21: Non-DSHS Revenue | D21: =SUM(E21:K21) -> 0 | E21: 0 | F21: 0 | G21: 0 | H21: 0 | I21: 0 | J21: 0 | K21: 0
A22: =+A21+1 -> 11 | C22: TOTAL OTHER OPERATING REVENUE | D22: =SUM(D18:D21) -> 0 | E22: =SUM(E18:E21) -> 0 | F22: 0 | G22: 0 | H22: 0 | I22: 0 | J22: 0 | K22: 0
A23: NONOPERATING REVENUE
A24: =+A22+1 -> 12 | B24: 4620 | C24: Interest Income | D24: =SUM(E24:K24) -> 0 | E24: 0 | F24: 0 | G24: 0 | H24: 0 | I24: 0 | J24: 0 | K24: 0
A25: =+A24+1 -> 13 | B25: 4650 | C25: Cash Donations & Contributions | D25: =SUM(E25:K25) -> 0 | E25: 0 | F25: 0 | G25: 0 | H25: 0 | I25: 0 | J25: 0 | K25: 0
A26: =+A25+1 -> 14 | C26: Noncash Donations & Contributions | D26: =SUM(E26:K26) -> 0 | E26: 0 | F26: 0 | G26: 0 | H26: 0 | I26: 0 | J26: 0 | K26: 0
A27: =+A26+1 -> 15 | C27: Other (Detail on Schedule L) | D27: =SUM(E27:K27) -> 0 | E27: 0 | F27: 0 | G27: 0 | H27: 0 | I27: 0 | J27: 0 | K27: 0
A28: =+A27+1 -> 16 | C28: TOTAL NONOPERATING REVENUE | D28: =SUM(D24:D27) -> 0 | E28: =SUM(E24:E27) -> 0 | F28: 0 | G28: 0 | H28: 0 | I28: 0 | J28: 0 | K28: 0
A29: TOTAL REVENUES
A30: =+A28+1 -> 17 | C30: TOTAL FROM LINES 6, 11 and 16 | D30: =+D16+D22+D28 -> 0 | E30: 0 | F30: 0 | G30: 0 | H30: 0 | I30: 0 | J30: 0 | K30: 0
A32: DSHS/DDA Schedule H (Rev. 12/18)

Sheet J Summary
B1: J SUMMARY
E3: =A!B7 -> 0
E4: PROVIDER NAME
B6: A | C6: B | E6: C | F6: D
B7: SETTLEMENT A
E8: ISS HOURS | F8: DOLLAR CONVERSION
B9: 1 | C9: TOTAL REIMBURSED HOURS TIMES THE AVERAGE REIMBURSEMENT RATE (Line 7/Line 1, Col C) | E9: =+'J Detail'!D41 -> 0 | F9: =IF(_C001582=0,0,_C001582*ROUND(_C001589/_C001582,2)) -> 0
B10: =B9+1 -> 2 | C10: Regular Paid ISS Hours Worked Times the Average Reimbursement rate (Line 7/Line 1, Col C) Less: Mandatory Training Hours RCW 74.39A January 1, 2018 to December 31, 2018 (Sch B-1, Line 8, Col 5) *Note: Hours reported on Line 2 do not include hours reported on line 3 | E10: ='B-1'!H19-'B-1'!F19-'B-1'!E18-_C001584 -> 0 | F10: =IF(_C001583=0,0,_C001583*ROUND(_C001589/_C001582,2)) -> 0
B11: 3 | C11: Overtime Paid Hours Worked Times the Overtime Average Reimbursement Rate (Line 7/Line 1, Col C*1.5) *Note: Hours reported on Line 3 are not included with hours reported on line 2 (Applies if approved by the Regional Administrator - a letter requesting consideration of overtime must be submitted to the RA with the completed cost report to be considered) | E11: ='B-1'!F19 -> 0 | F11: =IF(E11=0,0,E11*ROUND((_C001589/_C001582*1.5),2)) -> 0
B12: 4 | C12: Plus: Allowable ISS Paid Hours Worked by Administrator Times the Average Reimbursement Rate (Line 7/Line 1, Col C) (SL & Comb programs with 41,600 Direct Care/ISS hours or less) | E12: ='B-1'!H16 -> 0 | F12: =IF(_C001584=0,0,_C001584*ROUND(_C001589/_C001582,2)) -> 0
B13: =B12+1 -> 5 | C13: Equals: TOTAL ISS PAID HOURS WORKED & TOTAL AVERAGE REIMBURSEMENT RATE (Line 7/Line 1, Col C) | E13: =SUM(E10:E12) -> 0 | F13: =SUM(F10:F12) -> 0
B14: =B13+1 -> 6 | C14: = SETTLEMENT A: AMOUNT DUE FOR ISS HOURS NOT PROVIDED (Col C & D, Line 1 minus 5) | E14: =IF(E9-E13<0,0,E9-E13) -> 0 | F14: =IF(F9-F13<0,0,F9-F13) -> 0
B15: SETTLEMENT B
B16: =B14+1 -> 7 | C16: TOTAL REIMBURSED DOLLARS | F16: =+'J Detail'!F41 -> 0
B17: =B16+1 -> 8 | C17: Allowable ISS Staff Payroll Costs Less Mandatory Training RCW 74.39A costs calculated on Sch E, Sec 2f (January 1, 2018 to December 31, 2018) | F17: =IF(SUM(E!E19:H19)=0,0,SUM(E!E19:H19)+SUM(E!E25:H25)+E!D18) -> 0
B18: =B17+1 -> 9 | C18: Allowable Payroll Costs for ISS Hours Worked by Administrator (Line, 4, Col. C * Line 7/Line 1, Col. C) (SL & Comb SL/GH programs with 41,600 Direct Care/ISS hours or less) | F18: =IF(_C001584=0,0,_C001584*ROUND((_C001589/_C001582),2)) -> 0
B19: =B18+1 -> 10 | C19: Equals: TOTAL ALLOWABLE ISS PAYROLL COSTS (Col D, Line 8+9) | F19: =SUM(F17:F18) -> 0
B20: =B19+1 -> 11 | C20: = SETTLEMENT B: AMOUNT DUE FOR UNSPENT ISS REIMBURSEMENTS (Col D, Line 7 minus 10) | F20: =IF(_C001589-F19<0,0,_C001589-F19) -> 0
B21: SETTLEMENT
B22: =+B20+1 -> 12 | C22: TOTAL PRELIMINARY NET SETTLEMENT AMOUNT (Greater of Line 6 or 11) | F22: =IF(_C001588>F20,_C001588,F20) -> 0
B23: DSHS-DDA Schedule J Summary (Rev. 12/18)

Sheet J Detail
A1: J DETAIL
B2: Settlement Information Worksheet: Service Hours and Reimbursement are for services provided during the calendar year. The rate component information required (ISS @ benchmark, Other ISS and Admin) is available from your Schedule J Detail by Client or Exhibit C(s).
B3: Provider Name | C3: =A!B7 -> 0 | E3: Region | F3: =_M000009 -> 
B4: Program Name | E4: Report Period | F4: =IF(_C000019="","-",MONTH(_C000019)&"/"&DAY(_C000019)&"/"&YEAR(_C000019)&" - "&MONTH(_C000020)&"/"&DAY(_C000020)&"/"&YEAR(_C000020)) -> 1/1/2018 - 12/31/2018
B5: A | C5: B | D5: C | E5: D | F5: E
A6: Line # | B6: Service Type - (SL,GH, or SL/GH) | C6: Date(s) of Service | D6: Hours Reimbursed | E6: Benchmark Rate | F6: Regular ISS Reimbursement
A7: 1 | F7: =+D7*E7 -> 0
A8: =+A7+1 -> 2 | F8: =+D8*E8 -> 0
A9: 3 | F9: 0
A10: 4 | F10: 0
A11: 5 | F11: 0
A12: 6 | F12: 0
A13: 7 | F13: 0
A14: 8 | F14: 0
A15: 9 | F15: 0
A16: 10 | F16: 0
A17: 11 | F17: 0
A18: 12 | B18: Totals from Detail Pg 2 - COCA | D18: ='J Detail pg 2 - COCA'!D42 -> 0 | F18: ='J Detail pg 2 - COCA'!F42 -> 0
A19: 13 | B19: Sub-Total | D19: =SUM(D7:D18) -> 0 | F19: =ROUND(SUM(F7:F18),2) -> 0
B21: Nurse Delegation & Other Class Training, and Staff Add-On Hours | D21: Hours Reimbursed | E21: Benchmark Rate | F21: ISS Reimbursement
A22: =+A19+1 -> 14 | B22: Nurse Delegation Training Hours | F22: =ROUND(+D22*E22,2) -> 0
A23: =+A22+1 -> 15 | B23: Nurse Delegation Training Hours | F23: 0
A24: 16 | B24: Nurse Delegation Training Hours | F24: 0
A25: 17 | B25: Nurse Delegation Training Hours | F25: 0
A26: 18 | B26: Staff Add-On Hours | F26: 0
A27: 19 | B27: Staff Add-On Hours | F27: 0
A28: 20 | B28: Staff Add-On Hours | F28: 0
A29: 21 | B29: Staff Add-On Hours | F29: 0
A30: 22 | B30: Sub-Total | D30: =SUM(D22:D29) -> 0 | F30: =ROUND(SUM(F22:F29),2) -> 0
B32: Non-Benchmark, Professional Services: Description (Nurse, RN, LPN, Therapist, etc.) | D32: Hours Reimbursed | E32: Prof. Srvcs. Rate | F32: Other ISS Reimbursement
A33: =+A30+1 -> 23 | F33: =ROUND(+D33*E33,2) -> 0
A34: =+A33+1 -> 24 | F34: 0
A35: 25 | F35: 0
A36: 26 | F36: 0
A37: 27 | F37: 0
A38: 28 | F38: 0
A39: 29 | B39: Sub-Total | D39: =SUM(D33:D38) -> 0 | F39: =ROUND(SUM(F33:F38),2) -> 0
A41: =+A39+1 -> 30 | B41: Total ISS (to J Summary) (Average Reimbursement Rate = ISS Reimbursments paid divided by total hours reimbursed) | D41: =D19+D30+D39 -> 0 | E41: =IF(_C001716=0,0,_C001717/_C001716) -> 0 | F41: =F19+F30+F39 -> 0
A43: 31 | B43: Total Itemized Costs (Schedule E, Line 5) | F43: =SUM(E!E44:H44) -> 0
A44: =A43+1 -> 32 | B44: Less: Total Allowable ISS Cost, (Schedule J Summary, Line 10) | F44: =IF(F43=0,0,'J Summary'!F19) -> 0
A45: =A44+1 -> 33 | B45: TOTAL NON-ISS COSTS (Line 31 - Line 32 ) | F45: =+F43-F44 -> 0
A46: =A45+1 -> 34 | B46: Reimbursed Administrative/Indirect Client Support/Non-ISS Staff Received for Services (Schedule J Detail by Client cell AR2)
A47: =A46+1 -> 35 | B47: NON-ISS COSTS GREATER THAN REIMBURSEMENT; If Not Then $0 (Line 33 - Line 34) | F47: =IF(F45-F46>0,F45-F46,0) -> 0
A48: DSHS-DDA Schedule J Detail (Rev. 12/18)

Sheet J Detail pg 2 - COCA
A1: J DETAIL PG 2 - COCA
B2: Settlement Information Worksheet: Service Hours and Reimbursement are for services provided during the calendar year. The rate component information required (ISS @ benchmark, Other ISS and Admin) is available from your Exhibit C(s).
B3: Provider Name | C3: =A!B7 -> 0 | E3: Region | F3: =_M001601 -> 
B4: Program Name | C4: =_M001602 -> 0 | E4: Report Period | F4: =_C001603 -> 1/1/2018 - 12/31/2018
A6: Line # | B6: Individual COCA's | C6: Date(s) of Service | D6: Total ISS Hours Reimbursed | E6: Benchmark Rate | F6: Regular ISS Reimbursement
A7: 1 | B7: COCA | F7: =ROUND(+D7*E7,2) -> 0
A8: =+A7+1 -> 2 | B8: COCA | F8: 0
A9: 3 | B9: COCA | F9: 0
A10: 4 | B10: COCA | F10: 0
A11: 5 | B11: COCA | F11: 0
A12: 6 | B12: COCA | F12: 0
A13: 7 | B13: COCA | F13: 0
A14: 8 | B14: COCA | F14: 0
A15: 9 | B15: COCA | F15: 0
A16: 10 | B16: COCA | F16: 0
A17: 11 | B17: COCA | F17: 0
A18: 12 | B18: COCA | F18: 0
A19: 13 | B19: COCA | F19: 0
A20: 14 | B20: COCA | F20: 0
A21: 15 | B21: COCA | F21: 0
A22: 16 | B22: COCA | F22: 0
A23: 17 | B23: COCA | F23: 0
A24: 18 | B24: COCA | F24: 0
A25: 19 | B25: COCA | F25: 0
A26: 20 | B26: COCA | F26: 0
A27: 21 | B27: COCA | F27: 0
A28: 22 | B28: COCA | F28: 0
A29: 23 | B29: COCA | F29: 0
A30: 24 | B30: COCA | F30: 0
A31: 25 | B31: COCA | F31: 0
A32: 26 | B32: COCA | F32: 0
A33: 27 | B33: COCA | F33: 0
A34: 28 | B34: COCA | F34: 0
A35: 29 | B35: COCA | F35: 0
A36: 30 | B36: COCA | F36: 0
A37: 31 | B37: COCA | F37: 0
A38: 32 | B38: COCA | F38: 0
A39: 33 | B39: COCA | F39: 0
A40: 34 | B40: COCA | F40: 0
A41: 35 | B41: COCA | F41: 0
B42: Total (posted to Schd J Detail - Line 12) | D42: =SUM(D7:D41) -> 0 | F42: =SUM(F7:F41) -> 0
A43: DSHS-DDA Schedule J Detail pg 2 (Rev.12/18)

Sheet J Detail pg 3 - Prof Svs (hidden)
A1: J DETAIL PG 3 - PROF SVS
B2: Settlement Information Worksheet: Service Hours and Reimbursement are for services provided during the calendar year. The rate component information required (ISS @ benchmark, Other ISS and Admin) is available from your Exhibit C(s).
B3: Provider Name | C3: =#REF! ->  | E3: Region | F3: =_M001601 -> 
B4: Program Name | C4: =_M001602 -> 0 | E4: Report Period | F4: =_C001603 -> 1/1/2018 - 12/31/2018
A6: Line # | B6: Non-Benchmark, Professional Services: Description (Nurse (RN, LPN), Therapist, etc.) - Continued from J Detail | D6: Total Hours Reimbursed | E6: Prof. Srvcs. Rate | F6: Other ISS Reimbursement
A7: 1 | F7: =ROUND(+D7*E7,2) -> 0
A8: =+A7+1 -> 2 | F8: 0
A9: 3 | F9: 0
A10: 4 | F10: 0
A11: 5 | F11: 0
A12: 6 | F12: 0
A13: 7 | F13: 0
A14: 8 | F14: 0
A15: 9 | F15: 0
A16: 10 | F16: 0
A17: 11 | F17: 0
A18: 12 | F18: 0
A19: 13 | F19: 0
A20: 14 | F20: 0
A21: 15 | F21: 0
A22: 16 | F22: 0
A23: 17 | F23: 0
A24: 18 | F24: 0
A25: 19 | F25: 0
A26: 20 | F26: 0
A27: 21 | F27: 0
A28: 22 | F28: 0
A29: 23 | F29: 0
A30: 24 | F30: 0
A31: 25 | F31: 0
A32: 26 | F32: 0
A33: 27 | F33: 0
A34: 28 | F34: 0
A35: 29 | F35: 0
A36: 30 | F36: 0
A37: 31 | F37: 0
A38: 32 | F38: 0
A39: 33 | F39: 0
A40: 34 | F40: 0
A41: 35 | F41: 0
B42: Total (posted to Schd J Detail - Line 28) | D42: =SUM(D7:D41) -> 0 | F42: =SUM(F7:F41) -> 0
A43: DSHS-DDA Schedule J Detail pg 2 (Rev. 2/15)

Sheet J-Adm (hidden)
A1: J-ADM
D3: =#REF! -> 
D4: PROVIDER NAME
A6: Line | B6: Administrative Rate Settlement Calculation for Hours Not Provided | D6: Admin. Rate & Payment
D7: Standard | E7: Paid
A8: 1 | B8: Client Days subject to settlement | C8: 11272
A9: 2 | B9: Contracted ISS Hours pd. (do not include Prof. Srvcs, Nurse Delegation Class or Staff Add-On hours) | C9: =_C001662 -> 0
A10: 3 | B10: Admin. Average Weighted Rates | D10: =IF($C8>0,+D12/$C8,0) -> 41.3474237 | E10: =IF($C8>0,+E13/$C8,0) -> 41.3474237
B11: Total Annual Admin Revenue
A12: 4 | B12: @ standard Admin rates (Line 16) | D12: ='J-Adm'!E28 -> 466068.16
A13: 5 | B13: @ Admin. rates paid (Line 15) | E13: ='J-Adm'!E27 -> 466068.16
B14: Adm. Per Hour
A15: 6 | B15: @ standard (line 4 / line 2) | D15: =IF(C9>0,ROUND(+D12/C9,2),0) -> 0
A16: 7 | B16: @ rates paid (line 5 / line 2) | E16: =IF(C9>0,ROUND(+E13/C9,2),0) -> 0
A17: 8 | B17: Variance: Admin. Rate Paid > Standard (Line 7 - Line 6) | C17: =IF(_C001728-_C001727<0,0,_C001728-_C001727) -> 0
A18: 9 | B18: Contracted Hours (J-Adm, Line 2) | C18: =+C9 -> 0
A19: 10 | B19: Hours Provided (J Summary, Line 4) | C19: =+#REF! -> 
A20: 11 | B20: Hours not Provided | C20: =+C18-C19 -> 
B21: Administrative Rate Settlement Calculation for Hours Not Provided
A22: 12 | B22: Hours not Provided | C22: =+C20 -> 
A23: 13 | B23: x Admin. Per Hour over Standard | C23: =+C17 -> 0 | D23: =
A24: 14 | B24: If Hrs not provided >0 & Admin paid > standard: Settlement for Hours not Provided | E24: =IF(C22>0,IF(C23>0,+C22*C23,0),0) -> 
B26: Administrative Revenue/Expenditures for Administrative Settlement Calculation | E26: Totals
A27: 15 | B27: 1/ Administrative Reimbursement @ Contracted Rates (Sch J Detail by Client AI2) | E27: 466068.16
A28: =+A27+1 -> 16 | B28: 1/ Administrative Reimbursement @ Administrative Standard Rates (Sch J Detail by Client AL2) | E28: 466068.16
A29: =+A28+1 -> 17 | B29: If line 31 greater than line 32, and you have calculated a settlement A, complete Schedule J-Adm to determine the Administrative Rate Settlement | E29: =+E27-E28 -> 0
B30: 1/ Calculate these amounts only if:
B31: You have a settlement due to hours not provided (settlement A); and
B32: Your agency average administrative rate is higher than the standard (refer to your Exhibit C)
A33: DSHS-DDA Schedule J-Adm (Rev. 11/15)

Sheet L
A1: SCHEDULE L
G3: =A!B7 -> 0
G4: PROVIDER NAME
B7: FROM SCHEDULE | C7: ACCT. # | F7: DESCRIPTION OF EXPENSES IN "OTHER" CATEGORIES | H7: AMOUNTS OVER $1,000
A25: DSHS/DDA Schedule L (Rev. 12/18)

Sheet M
B1: SCHEDULE M
H3: =A!B7 -> 0
H4: PROVIDER NAME
B6: Instructions: Use this schedule to report ISS salary, wages and other compensation for owner(s) and/or individuals that have any other relationship, interest or involvement with the ownership of the agency other than an employer/employee arrangement. Include only amounts that are included in schedule E, codes 5611, 5612 or 5614. Do not include compensation for owners and/or individuals that are included in schedule C for administrators or other administrative staff.
D8: SERVICES PERFORMED | E8: Hours Worked During the Period | F8: Cost Report Account Code | G8: Salary Amount Included in Schedule E, lines 2 or 3 | H8: Fringe Benefits and PR Taxes Included in Schedule E, lines 2 or 3 | I8: Other Payments or Benefits Included in Schedule E, lines 2 or 3 | J8: Total ISS Payments or Benefits Included in Schedule E, lines 2 or 3
B9: Employee | C9: Relationship | D9: Job Title - Summary Description of Duties Performed
B10: Employee 1 | E10: 0 | J10: =ROUND(SUM(G10:I10),0) -> 0
B11: Employee 2 | E11: 0 | J11: 0
B12: Employee 3 | E12: 0 | J12: 0
B13: Employee 4 | E13: 0 | J13: 0
B14: Employee 5 | E14: 0 | J14: 0
B15: Employee 6 | E15: 0 | J15: 0
B16: Employee 7 | E16: 0 | J16: 0
B17: Employee 8 | E17: 0 | J17: 0
B18: DSHS/DDA Schedule M (Rev. 12/18)

Sheet N
A1: SCHEDULE N
N3: =_M000001 -> 0
N4: PROVIDER NAME
D6: SUPPORTED LIVING PROVIDERS ONLY:
C8: DOES THE AGENCY, ITS ADMINISTRATOR OR OWNER, HAVE OWNERSHIP INTEREST IN ANY OF THE HOMES RENTED BY CLIENTS SUPPORTED BY YOUR AGENCY?
G9: If Yes, list the homes and locations. Explain special situations.
B11: 1)
B13: 2)
B15: 3)
B17: 4)
B19: 5)
B21: 6)
B23: 7)
A26: DSHS/DDA Schedule N (Rev. 12/18)

Sheet O
A1: SCHEDULE O
I3: =A!B7 -> 0
I4: PROVIDER NAME
A6: IMPORTANT, PLEASE READ before completing schedule:
A7: COMPLETE A SEPARATE SCHEDULE FOR EACH LOCATION BY: PROGRAM TYPE AND COUNTY FOR ADDITIONAL COPIES OF SCHEDULE O CONTACT YOUR AGENCY'S RATE ANALYST Reporting Period: January 1, 2018 to December 31, 2018 (One Calendar Year, 12 months, 2018)
A8: The schedule(s) will be reviewed by the rate analyst to ensure the agency is reporting contracts, programs, and locations separately. Any cost reports found to be incomplete will be returned to the agency for correction.
B9: 1. AGENCY INFORMATION:
B11: Where are the Services Provided?
C13: PROGRAM TYPE | E13: PROGRAM NAME | I13: CITY | J13: COUNTY
B16: 2. CONTACT INFORMATION:
C17: Name (Person Completing Schedule)
C18: Title (Person Completing Schedule)
C19: Telephone Number:
C20: E-Mail Address:
B22: 3. BOARD OF DIRECTORS INFORMATION:
B23: Non-Profit Agencies only, please fill out the following information if you have a Board of Directors or other governing board. Do not include advisory committees or other non-governing, non-voting boards.
C24: a) Board of Directors - Number of Members (total number of positions)? ……………
C25: b) Board of Directors -Total number of voting board members? …………………………
C26: c) Voting Board Members - How many are people with intellectual disabilities or other developmental disabilities who are recipients of services (from this or any agency)? …………………………………………………………………..
C27: d) Voting Board Members - How many are family members (parents, siblings, or other relatives) of people with intellectual disabilities or other developmental disabilities who are recipients of services (from this or any agency)? ………………………………………………
B29: 4. CLIENT INFORMATION:
C30: Average Monthly Count of Clients supported in this program?
B32: 5. EMPLOYEE BENEFITS:
C34: In addition to wages, does your agency provide benefits to direct service staff? If Yes, check all that apply | J34: Yes
C35: Medical Insurance (paid in whole or in part by agency)
C36: Dental Insurance (paid in whole or in part by agency)
C37: Retirement (paid in whole or in part by agency)
C38: Paid Sick Leave
C39: Paid Vacation
C40: Short-Term Disability
C41: Long-Term Disability
C42: Jury Duty Leave
C43: Bereavement Leave
C44: Vision Insurance
C45: Employee Assistance Plan
C46: Life Insurance
B50: 6. RECRUITING:
C52: Difference in recruiting new staff from 1/1/2018 - 12/31/2018? (Check boxes that apply) | F52: ENTRY LEVEL | G52: 1st LINE SUPERVISOR | H52: PROGRAM MANAGERS | I52: *SPECIALISTS (e.g., recreation, behavioral, or staff trainers, etc.) | J52: NURSES (RN, LPN)
C53: Situation is worse (Harder to recruit)
C54: Some improvement (Easier to recruit)
C55: Definite improvement (Much easier to recruit)
C56: No difference
B59: 7. STAFFING INFORMATION:
B60: SECTION 1A
D61: 1 | E61: 2 | G61: 3 | H61: 4 | I61: 5 | J61: 6 | K61: 7
B62: Line # | C62: POSITION TYPE | D62: Number of ISS staff (Full-time, Part-time, & Temp combined) on December 31, 2018 | E62: Number of ISS staff who left: | G62: Number of ISS vacancies on December 31, 2018 | H62: Percentage of ISS work hours filled w/OT or non-scheduled staff (Estimates accepted if unknown) | I62: Average number of days to fill vacant positions (Estimates accepted if unknown) | J62: Current starting wage for this type of position within your agency in 2018 (Hourly Rate) | K62: What is the average wage for this type of position after 2 years of employment (Hourly Rate)
E63: (Six Months) Jan. 1, 2018 to June 30, 2018 | F63: (Six Months) July 1, 2018 to Dec. 31, 2018
B64: 1 | C64: ENTRY LEVEL | J64: 0 | K64: 0
B65: 2 | C65: 1st LINE SUPERVISORS | J65: 0 | K65: 0
B66: 3 | C66: PROGRAM MANAGERS | J66: 0 | K66: 0
B67: 4 | C67: *SPECIALISTS (recreation, behavioral, or staff trainers, etc.) | J67: 0 | K67: 0
B68: 5 | C68: NURSES (RN, LPN) | J68: 0 | K68: 0
C69: TOTAL (Lines 1 thru 5) | D69: =SUM(D64:D68) -> 0 | E69: =SUM(E64:E68) -> 0 | F69: =SUM(F64:F68) -> 0 | G69: =SUM(G64:G68) -> 0
B71: SECTION 1B
B72: Line # | C72: Length of Time with your Agency | F72: Using the total number of staff from above, what is the length of time they have been with your agency? | H72: THE AMOUNTS CONNECTED BY THE RED ARROW MUST EQUAL ONE ANOTHER The Number of ISS staff from above (Section 1A) and Number of staff by length of time with your agency (Section 1B) should total to the same number
B73: 7 | C73: LESS than 6 Months
B74: 8 | C74: BETWEEN 6 and 12 months
B75: 9 | C75: OVER 12 months
C76: Total Staff by Length of Time (Total Lines 7 thru 9) | F76: =SUM(F73:F75) -> 0
B78: COMMENTS:
A81: DSHS/DDA Schedule O (Rev. 12/18)

Sheet O Add'l
A1: SCHEDULE O
I3: =A!B7 -> 0
I4: PROVIDER NAME
A6: IMPORTANT, PLEASE READ before completing schedule:
A7: COMPLETE A SEPARATE SCHEDULE FOR EACH LOCATION BY: PROGRAM TYPE AND COUNTY FOR ADDITIONAL COPIES OF SCHEDULE O CONTACT YOUR AGENCY'S RATE ANALYST Reporting Period: January 1, 2018 to December 31, 2018 (One Calendar Year, 12 months, 2018)
A8: The schedule(s) will be reviewed by the rate analyst to ensure the agency is reporting contracts, programs, and locations separately. Any cost reports found to be incomplete will be returned to the agency for correction.
B9: 1. AGENCY INFORMATION:
B11: Where are the Services Provided?
C13: PROGRAM TYPE | E13: PROGRAM NAME | I13: CITY | J13: COUNTY
B16: 2. CONTACT INFORMATION:
C17: Name (Person Completing Schedule)
C18: Title (Person Completing Schedule)
C19: Telephone Number:
C20: E-Mail Address:
B22: 3. BOARD OF DIRECTORS INFORMATION:
B23: Non-Profit Agencies only, please fill out the following information if you have a Board of Directors or other governing board. Do not include advisory committees or other non-governing, non-voting boards.
C24: a) Board of Directors - Number of Members (total number of positions)? ……………
C25: b) Board of Directors -Total number of voting board members? …………………………
C26: c) Voting Board Members - How many are people with intellectual disabilities or other developmental disabilities who are recipients of services (from this or any agency)? …………………………………………………………………..
C27: d) Voting Board Members - How many are family members (parents, siblings, or other relatives) of people with intellectual disabilities or other developmental disabilities who are recipients of services (from this or any agency)? ………………………………………………
B29: 4. CLIENT INFORMATION:
C30: Average Monthly Count of Clients supported in this program?
B32: 5. EMPLOYEE BENEFITS:
C34: In addition to wages, does your agency provide benefits to direct service staff? If Yes, check all that apply | J34: Yes
C35: Medical Insurance (paid in whole or in part by agency)
C36: Dental Insurance (paid in whole or in part by agency)
C37: Retirement (paid in whole or in part by agency)
C38: Paid Sick Leave
C39: Paid Vacation
C40: Short-Term Disability
C41: Long-Term Disability
C42: Jury Duty Leave
C43: Bereavement Leave
C44: Vision Insurance
C45: Employee Assistance Plan
C46: Life Insurance
B50: 6. RECRUITING:
C52: Difference in recruiting new staff from 1/1/2018 - 12/31/2018? (Check boxes that apply) | F52: ENTRY LEVEL | G52: 1st LINE SUPERVISOR | H52: PROGRAM MANAGERS | I52: *SPECIALISTS (e.g., recreation, behavioral, or staff trainers, etc.) | J52: NURSES (RN, LPN)
C53: Situation is worse (Harder to recruit)
C54: Some improvement (Easier to recruit)
C55: Definite improvement (Much easier to recruit)
C56: No difference
B59: 7. STAFFING INFORMATION:
B60: SECTION 1A
D61: 1 | E61: 2 | G61: 3 | H61: 4 | I61: 5 | J61: 6 | K61: 7
B62: Line # | C62: POSITION TYPE | D62: Number of ISS staff (Full-time, Part-time, & Temp combined) on December 31, 2018 | E62: Number of ISS staff who left: | G62: Number of ISS vacancies on December 31, 2018 | H62: Percentage of ISS work hours filled w/OT or non-scheduled staff (Estimates accepted if unknown) | I62: Average number of days to fill vacant positions (Estimates accepted if unknown) | J62: Current starting wage for this type of position within your agency in 2018 (Hourly Rate) | K62: What is the average wage for this type of position after 2 years of employment (Hourly Rate)
E63: (Six Months) Jan. 1, 2018 to June 30, 2018 | F63: (Six Months) July 1, 2018 to Dec. 31, 2018
B64: 1 | C64: ENTRY LEVEL | J64: 0 | K64: 0
B65: 2 | C65: 1st LINE SUPERVISORS | J65: 0 | K65: 0
B66: 3 | C66: PROGRAM MANAGERS | J66: 0 | K66: 0
B67: 4 | C67: *SPECIALISTS (recreation, behavioral, or staff trainers, etc.) | J67: 0 | K67: 0
B68: 5 | C68: NURSES (RN, LPN) | J68: 0 | K68: 0
C69: TOTAL (Lines 1 thru 5) | D69: =SUM(D64:D68) -> 0 | E69: =SUM(E64:E68) -> 0 | F69: =SUM(F64:F68) -> 0 | G69: =SUM(G64:G68) -> 0
B71: SECTION 1B
B72: Line # | C72: Length of Time with your Agency | F72: Using the total number of staff from above, what is the length of time they have been with your agency? | H72: THE AMOUNTS CONNECTED BY THE RED ARROW MUST EQUAL ONE ANOTHER The Number of ISS staff from above (Section 1A) and Number of staff by length of time with your agency (Section 1B) should total to the same number
B73: 7 | C73: LESS than 6 Months
B74: 8 | C74: BETWEEN 6 and 12 months
B75: 9 | C75: OVER 12 months
C76: Total Staff by Length of Time (Total Lines 7 thru 9) | F76: =SUM(F73:F75) -> 0
B78: COMMENTS:
A81: DSHS/DDA Schedule O (Rev. 12/18)

Sheet P
A1: SCHEDULE P
I4: =A!B7 -> 0
I5: PROVIDER NAME
A6: INCLUDE ALL PROGRAMS FOR THE AGENCY ON THIS SCHEDULE
A7: Reporting Period: Dececmber 1, 2018 to December 31, 2018 (One Month)
B9: PROVIDER INFORMATION:
J10: Where are the Client Services Provided?
B11: PROGRAM TYPE | D11: PROVIDER NUMBER | E11: PROGRAM NAME | J11: CITY | K11: COUNTY
C12: Supported Living - Contracted
C13: Group Homes
C14: Supported Living - SOLA
C15: Group Training Home
B17: CONTACT INFORMATION:
C19: Name (Person Completing Schedule)
C20: Title (Person Completing Schedule)
C21: Telephone Number:
C22: E-Mail Address:
B24: HEALTH INSURANCE:
C26: 1. Total Number of employees working for the agency
C27: 2. Total number of Employees from #1 averaging 29 or less hours per week
C28: 3. Total number of Employees from #1 averaging 30-39 hours per week
C29: 4. Total number of Employees from #1 averaging 40 or more hours per week **The sum of #2, 3, & 4 must equal the total number of employees reported on #1
C30: 5. Currently how many employees who work in Supported Living (SL), Group Home (GH) or Children's Staffed Residential (CSR) are on your company provided health insurance plan? Please provide one number for all three types of services - add them all together if your company provides coverage for them separately, or accounts for them, separately. **This is for health insurance - do not include dental or other services (such as an Employee Assistance Plan (EAP), life insurance, disability insurance etc). Do not include coverage for employees who primarily work in other streams of revenue - private pay, home care, community access, supported employment etc.
C31: 6. Currently how many ISS hours per week does an employee have to work to be eligible for your company provided health insurance?
C32: 7. What is the cost per employee (the premium per subscriber) of company provided health insurance? This is the cost to the company and does not include the participation by the employee - if your current premium is $100.00 per subscriber and employee pays $20.00 towards the premium then you would enter $80.00
C33: 8. Currently how many of your employees work thirty (30) or more hours per week, but are not eligible for company provided health insurance?
C34: 9. Currently how many employees have waived your company provided health insurance, but will be required to take advantage of it in 2019? (Not 2018)
C35: 10. Taking into account your answers to question #4, #7 and #8; how many employees do you estimate will be enrolled in your company provided health insurance plan in 2018 to ensure compliance with the ACA? What is the total amount of enrollees you anticipate will be on your plan. (Not 2018)
C37: 11. Over a five year period what has been the percentage per employee (per subscriber) premium increase on your company provided health insurance? Please select a consecutive five year period, 2013 to 2017 or 2014 to 2018. Please represent this number as a percentage based on a per employee/subscriber cost increase from the prior year. For example: In 2017 the premium per employee was $100 and then increased to $150 in 2018; in 2018 you had a 50% increase in your per employee/subscriber premium costs. | F37: 2013 | G37: 2014 | H37: 2015 | I37: 2016 | J37: 2017 | K37: 2018
C40: 12. Over the same five year period you included in question 9 above, did your company reduce benefits offered through your company provided health insurance plan to reduce the company costs per employee (per subscriber) because the proposed rate increase was too high? For example, did your company move to a less robust plan which provided less coverage for employees/subscribers and required higher co-pays and deductibles? Please answer with "Yes" or "No" | F40: 2013 | G40: 2014 | H40: 2015 | I40: 2016 | J40: 20177 | K40: 2018
C43: 13. How many clients does your company serve in SL, GH and/or CSR? Please add all numbers together and provide one number for all clients served in all three areas.
C44: 14. How many ISS contract hours per day does your company have in contract for SL, GH and CSR? Please add them all together and provide one number for all three types.
A46: DSHS/DDA Schedule P (Rev. 12/18)

Sheet CountyList (hidden)
A1: County | B1: MSA, Non MSA, King | C1: Region | D1: County Code | F1: County | G1: MSA, Non MSA, King | H1: Region | I1: County Code
A2: Adams | B2: NON-MSA | C2: 1N | D2: 1 | F2: Adams | G2: NON-MSA | H2: 1N | I2: 1
A3: Asotin | B3: MSA | C3: 1S | D3: 2 | F3: Chelan | G3: MSA | H3: 1N | I3: 4
A4: Benton | B4: MSA | C4: 1S | D4: 3 | F4: Douglas | G4: MSA | H4: 1N | I4: 9
A5: Chelan | B5: MSA | C5: 1N | D5: 4 | F5: Ferry | G5: NON-MSA | H5: 1N | I5: 10
A6: Clallam | B6: NON-MSA | C6: 3S | D6: 5 | F6: Grant | G6: NON-MSA | H6: 1N | I6: 13
A7: Clark | B7: MSA | C7: 3S | D7: 6 | F7: Lincloln | G7: NON-MSA | H7: 1N | I7: 22
A8: Columbia | B8: NON-MSA | C8: 1S | D8: 7 | F8: Okanogan | G8: NON-MSA | H8: 1N | I8: 24
A9: Cowlitz | B9: MSA | C9: 3S | D9: 8 | F9: Pend Oreille | G9: NON-MSA | H9: 1N | I9: 26
A10: Douglas | B10: MSA | C10: 1N | D10: 9 | F10: Spokane | G10: MSA | H10: 1N | I10: 32
A11: Ferry | B11: NON-MSA | C11: 1N | D11: 10 | F11: Stevens | G11: NON-MSA | H11: 1N | I11: 33
A12: Franklin | B12: MSA | C12: 1S | D12: 11 | F12: Whitman | G12: NON-MSA | H12: 1N | I12: 38
A13: Garfield | B13: NON-MSA | C13: 1S | D13: 12 | F13: Asotin | G13: MSA | H13: 1S | I13: 2
A14: Grant | B14: NON-MSA | C14: 1N | D14: 13 | F14: Benton | G14: MSA | H14: 1S | I14: 3
A15: Grays Harbor | B15: NON-MSA | C15: 3S | D15: 14 | F15: Columbia | G15: NON-MSA | H15: 1S | I15: 7
A16: Island | B16: MSA | C16: 2N | D16: 15 | F16: Franklin | G16: MSA | H16: 1S | I16: 11
A17: Jefferson | B17: NON-MSA | C17: 3S | D17: 16 | F17: Garfield | G17: NON-MSA | H17: 1S | I17: 12
A18: King | B18: KING | C18: 2S | D18: 17 | F18: Kittitas | G18: NON-MSA | H18: 1S | I18: 19
A19: Kitsap | B19: MSA | C19: 3N | D19: 18 | F19: Klickitat | G19: NON-MSA | H19: 1S | I19: 20
A20: Kittitas | B20: NON-MSA | C20: 1S | D20: 19 | F20: Walla Walla | G20: NON-MSA | H20: 1S | I20: 36
A21: Klickitat | B21: NON-MSA | C21: 1S | D21: 20 | F21: Yakima | G21: MSA | H21: 1S | I21: 39
A22: Lewis | B22: NON-MSA | C22: 3S | D22: 21 | F22: Island | G22: MSA | H22: 2N | I22: 15
A23: Lincloln | B23: NON-MSA | C23: 1N | D23: 22 | F23: San Juan | G23: NON-MSA | H23: 2N | I23: 28
A24: Mason | B24: MSA | C24: 3S | D24: 23 | F24: Skagit | G24: MSA | H24: 2N | I24: 29
A25: Okanogan | B25: NON-MSA | C25: 1N | D25: 24 | F25: Snohomish | G25: MSA | H25: 2N | I25: 31
A26: Pacific | B26: NON-MSA | C26: 3S | D26: 25 | F26: Whatcom | G26: MSA | H26: 2N | I26: 37
A27: Pend Oreille | B27: NON-MSA | C27: 1N | D27: 26 | F27: King | G27: KING | H27: 2S | I27: 17
A28: Pierce | B28: MSA | C28: 3N | D28: 27 | F28: Kitsap | G28: MSA | H28: 3N | I28: 18
A29: San Juan | B29: NON-MSA | C29: 2N | D29: 28 | F29: Pierce | G29: MSA | H29: 3N | I29: 27
A30: Skagit | B30: MSA | C30: 2N | D30: 29 | F30: Clallam | G30: NON-MSA | H30: 3S | I30: 5
A31: Skamania | B31: NON-MSA | C31: 3S | D31: 30 | F31: Clark | G31: MSA | H31: 3S | I31: 6
A32: Snohomish | B32: MSA | C32: 2N | D32: 31 | F32: Cowlitz | G32: MSA | H32: 3S | I32: 8
A33: Spokane | B33: MSA | C33: 1N | D33: 32 | F33: Grays Harbor | G33: NON-MSA | H33: 3S | I33: 14
A34: Stevens | B34: NON-MSA | C34: 1N | D34: 33 | F34: Jefferson | G34: NON-MSA | H34: 3S | I34: 16
A35: Thurston | B35: MSA | C35: 3S | D35: 34 | F35: Lewis | G35: NON-MSA | H35: 3S | I35: 21
A36: Wahkiakum | B36: NON-MSA | C36: 3S | D36: 35 | F36: Mason | G36: MSA | H36: 3S | I36: 23
A37: Walla Walla | B37: NON-MSA | C37: 1S | D37: 36 | F37: Pacific | G37: NON-MSA | H37: 3S | I37: 25
A38: Whatcom | B38: MSA | C38: 2N | D38: 37 | F38: Skamania | G38: NON-MSA | H38: 3S | I38: 30
A39: Whitman | B39: NON-MSA | C39: 1N | D39: 38 | F39: Thurston | G39: MSA | H39: 3S | I39: 34
A40: Yakima | B40: MSA | C40: 1S | D40: 39 | F40: Wahkiakum | G40: NON-MSA | H40: 3S | I40: 35

Sheet Lists (hidden)
A1: Provider | B1: Provider ID a. | C1: Provider ID b. | D1: FY18 Benchmark or Avg Benchmark | E1: FY19 Benchmark or Avg Benchmark | F1: Calander Year 2018 Average Benchmark | G1: Urban Designation | I1: Urban Designation | J1: FY2018 Jan - Jun Benchmark | K1: FY2018 Jul - Dec Benchmark | M1: Sch B & J Detail | P1: Region | Q1: "B" | S1: Schedule B | Z1: Schedule O
I2: KING | J2: 18.53 | K2: 19.53 | S2: 1 | T2: 2 | U2: 3 | V2: 4a | W2: 4b | X2: 4c
A3: 1N - Aacres WA | B3: 111414301 | C3: 928190 | D3: =VLOOKUP(G3,$I$2:$K$5,2) -> 17.93 | E3: =VLOOKUP(G3,$I$2:$K$5,3) -> 18.93 | F3: =SUM(D3+E3)/2 -> 18.43 | G3: MSA | I3: MSA | J3: 17.93 | K3: 18.93 | M3: SL | P3: 1N | Q3: Cost Report | Z3: Supported Living - Contracted
A4: 1N - Aacres Spokane 2 | B4: 111414310 | D4: 17.93 | E4: 18.93 | F4: =SUM(D4+E4)/2 -> 18.43 | G4: MSA | I4: MSA/NON-MSA | J4: =+(17.93+17.62)/2 -> 17.775 | K4: =+(18.93+18.62)/2 -> 18.775 | M4: GH | P4: 1S | Q4: Budget | S4: Yes | T4: Individual | U4: Cash | V4: Yes | W4: Yes | X4: ISS Paid Hours Worked | Z4: Group Homes
A5: 1N - Aacres Spokane 3 | B5: 111414309 | D5: 17.93 | E5: 18.93 | F5: =SUM(D5+E5)/2 -> 18.43 | G5: MSA | I5: NON-MSA | J5: 17.62 | K5: 18.62 | M5: SL/GH | P5: 2N | S5: No | T5: Partnership | U5: Accrual | V5: No | W5: No | X5: Other Method | Z5: Supported Living - SOLA
A6: 1N - Adult Guidance & Empowerment Service | B6: 111684901 | C6: 131592 | D6: 17.93 | E6: 18.93 | F6: 18.43 | G6: MSA | P6: 2S | T6: Proprietary Corporation | U6: Modified Cash | Z6: Group Training Home
A7: 1N - Ambitions - Wenatchee, Omak, Moses Lake | B7: 111901903 | C7: 925218 | D7: 17.775 | E7: 18.775 | F7: 18.275 | G7: MSA/NON-MSA | P7: 3N | T7: Non-Profit Corporation
A8: 1N - Ambitions - Spokane | B8: 111901906 | D8: 17.93 | E8: 18.93 | F8: =SUM(D8+E8)/2 -> 18.43 | G8: MSA | P8: 3S | T8: Government Agency
A9: 1N - ARC of Spokane | B9: 111426502 | C9: 322383 | D9: 17.93 | E9: 18.93 | F9: 18.43 | G9: MSA
A10: 1N - Assisted Residential Services | B10: 111705601 | C10: 343692 | D10: 17.93 | E10: 18.93 | F10: 18.43 | G10: MSA
A11: 1N - Community Integrated Services | B11: 111425301 | C11: 823672 | D11: 17.93 | E11: 18.93 | F11: 18.43 | G11: MSA
A12: 1N - Community Visions | B12: 111530102 | C12: 330801 | D12: 17.93 | E12: 18.93 | F12: 18.43 | G12: MSA
A13: 1N - Dreamworks Residential | B13: 111913801 | C13: 621527 | D13: 17.62 | E13: 18.62 | F13: 18.12 | G13: NON-MSA
A14: 1N - Drive Services | B14: 111621401 | C14: 322188 | D14: 17.93 | E14: 18.93 | F14: 18.43 | G14: MSA
A15: 1N - Excel Supported Living | B15: 111322002 | D15: =VLOOKUP(G15,$I$2:$K$5,2) -> 17.93 | E15: =VLOOKUP(G15,$I$2:$K$5,3) -> 18.93 | F15: =SUM(D15+E15)/2 -> 18.43 | G15: MSA
A16: 1N - Grant County Developmental Disabilities | B16: 200012501 | C16: 162436 | D16: =VLOOKUP(G16,$I$2:$K$5,2) -> 17.62 | E16: =VLOOKUP(G16,$I$2:$K$5,3) -> 18.62 | F16: 18.12 | G16: NON-MSA
A17: 1N - Kaler House | B17: 111686001 | C17: 92824 | D17: 17.93 | E17: 18.93 | F17: 18.43 | G17: MSA
A18: 1N - Latah Services | B18: 111762501 | C18: 836399 | D18: 17.93 | E18: 18.93 | F18: 18.43 | G18: MSA
A19: 1N - Living In Fulfilling Environment | B19: 111777301 | C19: 58220 | D19: 17.93 | E19: 18.93 | F19: 18.43 | G19: MSA
A20: 1N - LMK | B20: 111988202 | C20: 621505 | D20: 17.62 | E20: 18.62 | F20: 18.12 | G20: NON-MSA
A21: 1N - Mission Vista | B21: 111707401 | C21: 306053 | D21: 17.93 | E21: 18.93 | F21: 18.43 | G21: MSA
A22: 1N - Parent's Cooperative Society for the Handicapped (Merry Glen) | B22: 111328901 | C22: 158076 | D22: 17.93 | E22: 18.93 | F22: 18.43 | G22: MSA
A23: 1N - Skils'kin | B23: 111632701 | C23: 695912 | D23: 17.93 | E23: 18.93 | F23: 18.43 | G23: MSA
A24: 1S - Alternative Residential Services | B24: 111625401 | C24: 450461 | D24: 17.775 | E24: 18.775 | F24: 18.275 | G24: MSA/NON-MSA
A25: 1S - Ambitions - Kennewick | B25: 111901901 | C25: 925274 | D25: 17.93 | E25: 18.93 | F25: 18.43 | G25: MSA
A26: 1S - Ambitions - Yakima | B26: 111901907 | D26: 17.93 | E26: 18.93 | F26: =SUM(D26+E26)/2 -> 18.43 | G26: MSA
A27: 1S - Community Living | B27: 111962202 | C27: 120191 | D27: 17.93 | E27: 18.93 | F27: 18.43 | G27: MSA
A28: 1S - Deaf Access Washington | B28: 111321901 | C28: 91176 | D28: 17.93 | E28: 18.93 | F28: 18.43 | G28: MSA
A29: 1S - Elmview | B29: 111604101 | C29: 340022 | D29: 17.775 | E29: 18.775 | F29: 18.275 | G29: MSA/NON-MSA
A30: 1S - Habilitat | B30: 111449601 | C30: 531937 | D30: 17.62 | E30: 18.62 | F30: 18.12 | G30: NON-MSA
A31: 1S - Kittitas Interactive Management | B31: 111688701 | C31: 45134 | D31: 17.62 | E31: 18.62 | F31: 18.12 | G31: NON-MSA
A32: 1S - Reach Supported Living | B32: 209862801 | D32: =VLOOKUP(G32,$I$2:$K$5,2) -> 17.93 | E32: =VLOOKUP(G32,$I$2:$K$5,3) -> 18.93 | F32: =SUM(D32+E32)/2 -> 18.43 | G32: MSA
A33: 1S - Tri-Cities Residential Services | B33: 111872501 | C33: 83918 | D33: =VLOOKUP(G33,$I$2:$K$5,2) -> 17.93 | E33: =VLOOKUP(G33,$I$2:$K$5,3) -> 18.93 | F33: 18.43 | G33: MSA
A34: 1S - Valley Residential Services | B34: 111777901 | C34: 66754 | D34: 17.62 | E34: 18.62 | F34: 18.12 | G34: NON-MSA
A35: 2N - Aacres | B35: 111414307 | D35: 17.93 | E35: 18.93 | F35: =SUM(D35+E35)/2 -> 18.43 | G35: MSA
A36: 2N - Access Living | B36: 111675101 | C36: 881577 | D36: 17.93 | E36: 18.93 | F36: 18.43 | G36: MSA
A37: 2N - All Heart Agency | B37: 111961601 | C37: 53910 | D37: 17.93 | E37: 18.93 | F37: 18.43 | G37: MSA
A38: 2N - Alpha Supported Living Services | B38: 111320902 | D38: 17.93 | E38: 18.93 | F38: 18.43 | G38: MSA
A39: 2N - Ambitions Whatcom | B39: 111901908 | D39: =VLOOKUP(G39,$I$2:$K$5,2) -> 17.93 | E39: =VLOOKUP(G39,$I$2:$K$5,3) -> 18.93 | F39: =SUM(D39+E39)/2 -> 18.43 | G39: MSA
A40: 2N - Camelot Society | B40: 101955202 | D40: 17.93 | E40: 18.93 | F40: 18.43 | G40: MSA
A41: 2N - Cascade Connections | B41: 111724102 | C41: 588510/780404 | D41: =VLOOKUP(G41,$I$2:$K$5,2) -> 17.93 | E41: =VLOOKUP(G41,$I$2:$K$5,3) -> 18.93 | F41: 18.43 | G41: MSA
A42: 2N - Evergreen Supported Living | B42: 111690301 | C42: 197341 | D42: 17.93 | E42: 18.93 | F42: 18.43 | G42: MSA
A43: 2N - Holly Community Services | B43: 111765001 | C43: 956087 | D43: 17.93 | E43: 18.93 | F43: 18.43 | G43: MSA
A44: 2N - La Casa de Esperanza | B44: 111390801 | C44: 662956 | D44: 17.93 | E44: 18.93 | F44: 18.43 | G44: MSA
A45: 2N - Puffin Island | B45: 111959501 | C45: 119992 | D45: 17.93 | E45: 18.93 | F45: 18.43 | G45: MSA
A46: 2N - Quilceda Community Services | B46: 111321203 | C46: 877 | D46: 17.93 | E46: 18.93 | F46: 18.43 | G46: MSA
A47: 2N - Rehabco | B47: 111681901 | C47: 57208 | D47: 17.93 | E47: 18.93 | F47: 18.43 | G47: MSA
A48: 2N - Rescare | B48: 111968512 | D48: =VLOOKUP(G48,$I$2:$K$5,2) -> 17.93 | E48: =VLOOKUP(G48,$I$2:$K$5,3) -> 18.93 | F48: =SUM(D48+E48)/2 -> 18.43 | G48: MSA
A49: 2N - Sails | B49: 111805705 | D49: =VLOOKUP(G49,$I$2:$K$5,2) -> 17.93 | E49: =VLOOKUP(G49,$I$2:$K$5,3) -> 18.93 | F49: =SUM(D49+E49)/2 -> 18.43 | G49: MSA
A50: 2N - Service Alternatives for WA | B50: 111513304 | C50: 301532 | D50: =VLOOKUP(G50,$I$2:$K$5,2) -> 17.93 | E50: =VLOOKUP(G50,$I$2:$K$5,3) -> 18.93 | F50: 18.43 | G50: MSA
A51: 2N - Snohomish Supportive Living Services | B51: 111518901 | C51: 339336 | D51: 17.93 | E51: 18.93 | F51: 18.43 | G51: MSA
A52: 2N - Soundview Association | B52: 111830201 | C52: 660205/973647 | D52: 17.93 | E52: 18.93 | F52: 18.43 | G52: MSA
A53: 2N - Steps Toward Independence | B53: 112034301 | C53: 877402 | D53: 17.93 | E53: 18.93 | F53: 18.43 | G53: MSA
A54: 2N - Sunrise Services | B54: 203434610 | C54: 177937 | D54: 17.93 | E54: 18.93 | F54: 18.43 | G54: MSA
A55: 2N - Village Community Services | B55: 111938301 | C55: 588565 | D55: 17.93 | E55: 18.93 | F55: 18.43 | G55: MSA
A56: 2N - Volunteers of America | B56: 200494106 | C56: 126007 | D56: 17.93 | E56: 18.93 | F56: 18.43 | G56: MSA
A57: 2S - Aacres | B57: 111414302 | C57: 928233 | D57: 18.53 | E57: 19.53 | F57: 19.03 | G57: KING
A58: 2S - Alpha Supported Living Services | B58: 111320901 | C58: 040175/827344 | D58: 18.53 | E58: 19.53 | F58: 19.03 | G58: KING
A59: 2S - Ambitions | B59: 111901902 | C59: 925035 | D59: 18.53 | E59: 19.53 | F59: 19.03 | G59: KING
A60: 2S - Arc of King County | B60: 112013701 | C60: 825497 | D60: 18.53 | E60: 19.53 | F60: 19.03 | G60: KING
A61: 2S - Banchero Friends Services | B61: 111415001 | C61: 72441 | D61: 18.53 | E61: 19.53 | F61: 19.03 | G61: KING
A62: 2S - Bethesda Lutheran Communities | B62: 111621301 | C62: 432532/433659 | D62: 18.53 | E62: 19.53 | F62: 19.03 | G62: KING
A63: 2S - Camelot Society | B63: 101955201 | C63: 303794 | D63: 18.53 | E63: 19.53 | F63: 19.03 | G63: KING
A64: 2S - Cascade Community Services | B64: 111875001 | C64: 151578 | D64: 18.53 | E64: 19.53 | F64: 19.03 | G64: KING
A65: 2S - Citizen Access Residential Resources | B65: 111533401 | C65: 677982 | D65: 18.53 | E65: 19.53 | F65: 19.03 | G65: KING
A66: 2S - Community Integrated Services | B66: 111425302 | C66: 248092 | D66: 18.53 | E66: 19.53 | F66: 19.03 | G66: KING
A67: 2S - Community Living | B67: 111962201 | C67: 205884 | D67: 18.53 | E67: 19.53 | F67: 19.03 | G67: KING
A68: 2S - Destiny House Operations | B68: 111992801 | C68: 628058 | D68: 18.53 | E68: 19.53 | F68: 19.03 | G68: KING
A69: 2S - Friendship House | B69: 111405501 | C69: 44564 | D69: 18.53 | E69: 19.53 | F69: 19.03 | G69: KING
A70: 2S - Greenwood Home | B70: 111913301 | C70: 610002 | D70: 18.53 | E70: 19.53 | F70: =SUM(D70+E70)/2 -> 19.03 | G70: KING
A71: 2S - Habilitation Services | B71: 208173701 | D71: 18.53 | E71: 19.53 | F71: 19.03 | G71: KING
A72: 2S - Helping Hands for the Disabled | B72: 111736002 | C72: 626261/903550 | D72: 18.53 | E72: 19.53 | F72: 19.03 | G72: KING
A73: 2S - Inglewood Residential and Community Services | B73: 111568401 | C73: 433445 | D73: 18.53 | E73: 19.53 | F73: 19.03 | G73: KING
A74: 2S - Integrated Living Services | B74: 111789002 | C74: 180625/681956 | D74: 18.53 | E74: 19.53 | F74: 19.03 | G74: KING
A75: 2S - L'Arche Noah Sealth of Seattle | B75: 111798601 | C75: 609889 | D75: 18.53 | E75: 19.53 | F75: 19.03 | G75: KING
A76: 2S - Life Skills Center | B76: 111499601 | C76: 68536 | D76: 18.53 | E76: 19.53 | F76: 19.03 | G76: KING
A77: 2S - Maksu | B77: 111577901 | C77: 825577 | D77: 18.53 | E77: 19.53 | F77: 19.03 | G77: KING
A78: 2S - Nellie Goodhue Group Homes | B78: 111800501 | C78: 610011 | D78: 18.53 | E78: 19.53 | F78: 19.03 | G78: KING
A79: 2S - Parkview Services | B79: 111456901 | C79: 602928 | D79: 18.53 | E79: 19.53 | F79: 19.03 | G79: KING
A80: 2S - Premier Care Services | B80: 111437001 | C80: 429624 | D80: 18.53 | E80: 19.53 | F80: 19.03 | G80: KING
A81: 2S - Provail | B81: 101144803 | C81: 340322 | D81: 18.53 | E81: 19.53 | F81: 19.03 | G81: KING
A82: 2S - Puget Sound Regional Services | B82: 111925301 | C82: 825613 | D82: 18.53 | E82: 19.53 | F82: 19.03 | G82: KING
A83: 2S - Res-Care Washington | B83: 111968506 | C83: 489354 | D83: 18.53 | E83: 19.53 | F83: 19.03 | G83: KING
A84: 2S - Sails | B84: 111805704 | D84: =VLOOKUP(G84,$I$2:$K$5,2) -> 18.53 | E84: =VLOOKUP(G84,$I$2:$K$5,3) -> 19.53 | F84: =SUM(D84+E84)/2 -> 19.03 | G84: KING
A85: 2S - Service Alternatives for WA | B85: 111513302 | C85: 544863 | D85: =VLOOKUP(G85,$I$2:$K$5,2) -> 18.53 | E85: =VLOOKUP(G85,$I$2:$K$5,3) -> 19.53 | F85: 19.03 | G85: KING
A86: 2S - Shamrock Living Services | B86: 111958301 | C86: 78744 | D86: 18.53 | E86: 19.53 | F86: 19.03 | G86: KING
A87: 2S - Shared Journeys | B87: 111515201 | C87: 167481 | D87: 18.53 | E87: 19.53 | F87: 19.03 | G87: KING
A88: 2S - Stand Together | B88: 111753401 | C88: 528919 | D88: 18.53 | E88: 19.53 | F88: 19.03 | G88: KING
A89: 2S - Tahoma Hills | B89: 111799101 | C89: 351507 | D89: 18.53 | E89: 19.53 | F89: 19.03 | G89: KING
A90: 2S - Total Living Concept | B90: 111571101 | C90: 442688/825635 | D90: 18.53 | E90: 19.53 | F90: 19.03 | G90: KING
A91: 2S - United Friends Group Home | B91: 101601101 | C91: 601336 | D91: 18.53 | E91: 19.53 | F91: 19.03 | G91: KING
A92: 2S - Volunteers of America | B92: 200494104 | C92: 677104 | D92: 18.53 | E92: 19.53 | F92: 19.03 | G92: KING
A93: 3N - Aacres WA | B93: 111414304 | C93: 928259 | D93: 17.93 | E93: 18.93 | F93: 18.43 | G93: MSA
A94: 3N - Ambitions, WA | B94: 111901904 | C94: 925079 | D94: 17.93 | E94: 18.93 | F94: 18.43 | G94: MSA
A95: 3N - Communitas Group | B95: 102702801 | C95: 539414/789676 | D95: 17.93 | E95: 18.93 | F95: 18.43 | G95: MSA
A96: 3N - Community Alternatives for People with Autism (CAPA) | B96: 112026801 | C96: 868252 | D96: 17.93 | E96: 18.93 | F96: 18.43 | G96: MSA
A97: 3N - Educational Programs in Home Living | B97: 111975401 | C97: 219207 | D97: 17.93 | E97: 18.93 | F97: 18.43 | G97: MSA
A98: 3N - Group Action for Peninsula People | B98: 111703801 | C98: 196657 | D98: 17.93 | E98: 18.93 | F98: 18.43 | G98: MSA
A99: 3N - Hope Human Services | B99: 207150601 | D99: 17.93 | E99: 18.93 | F99: 18.43 | G99: MSA
A100: 3N - Kitsap Residences | B100: 111781001 | C100: 116024 | D100: 17.93 | E100: 18.93 | F100: 18.43 | G100: MSA
A101: 3N - Kitsap Tenant Support Services | B101: 111715902 | C101: 586518 | D101: 17.93 | E101: 18.93 | F101: 18.43 | G101: MSA
A102: 3N - L'Arche Tahoma Hope Community | B102: 111610303 | C102: 236004 | D102: 17.93 | E102: 18.93 | F102: 18.43 | G102: MSA
A103: 3N - Life Force Services | B103: 111691201 | C103: 342850 | D103: 17.93 | E103: 18.93 | F103: 18.43 | G103: MSA
A104: 3N - NW Services for Independent Living | B104: 111812601 | C104: 587155 | D104: 17.93 | E104: 18.93 | F104: 18.43 | G104: MSA
A105: 3N - Options Unlimited | B105: 111904801 | C105: 625360 | D105: 17.93 | E105: 18.93 | F105: 18.43 | G105: MSA
A106: 3N - PAM Group Home | B106: 111728401 | C106: 587202 | D106: 17.93 | E106: 18.93 | F106: 18.43 | G106: MSA
A107: 3N - Puget Sound Assisted Living | B107: 111557601 | C107: 686863 | D107: 17.93 | E107: 18.93 | F107: 18.43 | G107: MSA
A108: 3N - Res-Care Washington | B108: 111968504 | C108: 378828 | D108: 17.93 | E108: 18.93 | F108: 18.43 | G108: MSA
A109: 3N - Self Determined Services | B109: 111874501 | C109: 153159 | D109: 17.93 | E109: 18.93 | F109: 18.43 | G109: MSA
A110: 3N - Service Alternatives for WA | B110: 111513305 | C110: 358400 | D110: 17.93 | E110: 18.93 | F110: 18.43 | G110: MSA
A111: 3N - Self Reliant Endeavors | B111: 204861001 | D111: =VLOOKUP(G111,$I$2:$K$5,2) -> 17.93 | E111: =VLOOKUP(G111,$I$2:$K$5,3) -> 18.93 | F111: =SUM(D111+E111)/2 -> 18.43 | G111: MSA
A112: 3N - Tahoma Associates | B112: 111335302 | C112: 297927 | D112: =VLOOKUP(G112,$I$2:$K$5,2) -> 17.93 | E112: =VLOOKUP(G112,$I$2:$K$5,3) -> 18.93 | F112: 18.43 | G112: MSA
A113: 3N - Valley Supported Living | B113: 111938101 | C113: 965589 | D113: 17.93 | E113: 18.93 | F113: 18.43 | G113: MSA
A114: 3S - Aacres - Thurston | B114: 111414308 | C114: 929653 | D114: 17.93 | E114: 18.93 | F114: 18.43 | G114: MSA
A115: 3S - Aacres - Clark | B115: 111414303 | C115: 929653 | D115: 17.62 | E115: 18.62 | F115: =SUM(D115+E115)/2 -> 18.12 | G115: NON-MSA
A116: 3S - Ambitions | B116: 111901905 | C116: 925079 | D116: 17.775 | E116: 18.775 | F116: =SUM(D116+E116)/2 -> 18.275 | G116: MSA/NON-MSA
A117: 3S - Another Option | B117: 111619102 | C117: 415519 | D117: 17.93 | E117: 18.93 | F117: 18.43 | G117: MSA
A118: 3S - Arc of Clark County | B118: 102623403 | C118: 451257 | D118: 17.93 | E118: 18.93 | F118: 18.43 | G118: MSA
A119: 3S - Brighton Enterprises - Clark | B119: 111686601 | C119: 59722 | D119: 17.93 | E119: 18.93 | F119: 18.43 | G119: MSA
A120: 3S - Brighton Enterprises - Thurston | B120: 111686602 | D120: 17.93 | E120: 18.93 | F120: =SUM(D120+E120)/2 -> 18.43 | G120: MSA
A121: 3S - Caregivers of Washington | B121: 203690902 | C121: 283667 | D121: =VLOOKUP(G121,$I$2:$K$5,2) -> 17.62 | E121: =VLOOKUP(G121,$I$2:$K$5,3) -> 18.62 | F121: 18.12 | G121: NON-MSA
A122: 3S - CCH Individual Support Services | B122: 111909801 | C122: 597522/987094 | D122: 17.62 | E122: 18.62 | F122: 18.12 | G122: NON-MSA
A123: 3S - Citizen Access Residential Resources | B123: 111533403/111533401 | C123: 742522 | D123: 17.93 | E123: 18.93 | F123: 18.43 | G123: MSA
A124: 3S - Community Resources | B124: 111977701 | C124: 550757 | D124: 17.775 | E124: 18.775 | F124: 18.275 | G124: MSA/NON-MSA
A125: 3S - Exceptional Foresters | B125: 111551801 | C125: 593835 | D125: 17.93 | E125: 18.93 | F125: 18.43 | G125: MSA
A126: 3S - Harbor Alternative Living Association | B126: 111349601 | C126: 593904 | D126: 17.62 | E126: 18.62 | F126: 18.12 | G126: NON-MSA
A127: 3S - Hope Human Services | B127: 207150603 | D127: 17.93 | E127: 18.93 | F127: 18.43 | G127: MSA
A128: 3S - Kitsap Tenant Support Services | B128: 111715901 | C128: 493668 | D128: =VLOOKUP(G128,$I$2:$K$5,2) -> 17.62 | E128: =VLOOKUP(G128,$I$2:$K$5,3) -> 18.62 | F128: 18.12 | G128: NON-MSA
A129: 3S - Kokua | B129: 111492901 | C129: 708859 | D129: =VLOOKUP(G129,$I$2:$K$5,2) -> 17.93 | E129: =VLOOKUP(G129,$I$2:$K$5,3) -> 18.93 | F129: 18.43 | G129: MSA
A130: 3S - Life Force Services - Thurston | B130: 111691202 | C130: 261724 | D130: =VLOOKUP(G130,$I$2:$K$5,2) -> 17.93 | E130: =VLOOKUP(G130,$I$2:$K$5,3) -> 18.93 | F130: 18.43 | G130: MSA
A131: 3S - Life Force Services - Clark | B131: 111691204 | D131: =VLOOKUP(G131,$I$2:$K$5,2) -> 17.93 | E131: =VLOOKUP(G131,$I$2:$K$5,3) -> 18.93 | F131: =SUM(D131+E131)/2 -> 18.43 | G131: MSA
A132: 3S - Life Works | B132: 111594402 | C132: 098329/597533 | D132: =VLOOKUP(G132,$I$2:$K$5,2) -> 17.93 | E132: =VLOOKUP(G132,$I$2:$K$5,3) -> 18.93 | F132: 18.43 | G132: MSA
A133: 3S - Placeone | B133: 111512001 | C133: 152951 | D133: 17.93 | E133: 18.93 | F133: 18.43 | G133: MSA
A134: 3S - ROAR | B134: 111442501 | C134: 612114 | D134: 17.93 | E134: 18.93 | F134: 18.43 | G134: MSA
A135: 3S - Reside Residential Care of Washington | B135: 111864101 | C135: 137760 | D135: 17.93 | E135: 18.93 | F135: 18.43 | G135: MSA
A136: 3S - SOLO | B136: 111910501 | C136: 642421 | D136: 17.93 | E136: 18.93 | F136: 18.43 | G136: MSA
A137: 3S - Twin Harbors Group Home Association | B137: 111669901 | C137: 663515 | D137: 17.62 | E137: 18.62 | F137: =SUM(D137+E137)/2 -> 18.12 | G137: NON-MSA
A138: 3S - Vancare | B138: 111811201 | C138: 564924 | D138: 17.93 | E138: 18.93 | F138: =SUM(D138+E138)/2 -> 18.43 | G138: MSA
